{"text_format":"1","workbook":"xlsx","n_sheets":25,"sheets":["Инструкция","Лог обновления","Титульный","Отпуск ЭЭ сет организациями","Комментарии","Проверка","Statistic","TEHSHEET","et_union","AllSheetsInThisWorkbook","mod_00","mod_01","mod_11","modComm","modButton","REESTR_ORG","REESTR_MO","modfrmReestr","modfrmCheckUpdates","modReestr","modListProv","modUpdTemplMain","modDoubleClick","modHyperlink","modfrmDateChoose"],"not_rendered":{"charts":0,"images":17,"macros":1,"external_links":2,"defined_names":126,"comments":1,"pivot_tables":0},"unopened":[],"bounds":{"document_bytes":16777216,"sheet_cells":100000,"rows_first":2000,"rows_last":500,"rows_between":2000,"halvings":0,"cell_chars":16384,"cell_head_chars":4096},"cells_cut":0,"cells_raw":0,"read":"whole","date_system":"1900"}

{"sheet":"Инструкция","index":0,"n_rows":148,"n_cols":27,"rows_kept":148,"cut":false,"hidden":false,"merged":[[145,5,145,18],[101,4,101,23],[147,5,147,23],[114,4,114,23],[115,4,115,23],[126,4,126,6],[126,7,126,23],[127,4,127,6],[127,7,127,23],[119,4,119,23],[120,4,120,23],[121,4,121,23],[122,4,122,23],[128,4,128,6],[128,7,128,23],[129,7,129,23],[143,4,143,23],[59,4,59,6],[59,7,59,23],[60,7,60,23],[110,4,110,23],[111,4,111,23],[87,4,87,23],[88,4,88,23],[89,4,89,23],[90,4,90,23],[106,4,106,23],[107,4,107,23],[109,4,109,23],[108,4,108,23],[98,4,98,23],[99,4,99,23],[80,4,80,23],[95,4,95,23],[97,4,97,23],[94,4,94,23],[96,4,96,23],[91,4,91,23],[92,4,92,23],[93,4,93,23],[83,4,83,23],[84,4,84,23],[86,4,86,23],[81,4,81,23],[82,4,82,23],[45,4,56,23],[57,4,57,6],[57,7,57,23],[58,4,58,6],[58,7,58,23],[1,1,1,6],[2,1,2,2],[4,1,4,24],[6,4,18,23],[20,5,20,12],[20,15,20,23],[21,5,21,12],[21,15,21,23],[75,4,75,23],[76,4,76,23],[102,4,102,23],[77,4,77,23],[78,4,78,23],[100,4,100,23],[79,4,79,23],[71,4,71,23],[72,4,72,23],[73,4,73,23],[74,4,74,23],[34,4,38,23],[39,4,39,23],[40,4,44,23],[103,4,103,23],[123,4,123,23],[116,4,116,23],[117,4,117,23],[118,4,118,23],[104,4,104,23],[105,4,105,23],[112,4,112,23],[113,4,113,23]]}
[null,null,null,null,null,null,null,null,null,null,null,null,null,null,null,null,null,null,null,null,null,null,null,null,null,null," (требуется обновление)"]
[null,{"$f":"\"Код шаблона: \" & GetCode()","v":"Код шаблона: 46EP.ST"}]
[null,{"$f":"\"Версия \" & GetVersion()","v":"Версия 1.0"}]
[]
[null,"Сведения об отпуске (передаче) электроэнергии распределительными сетевыми организациями отдельным категориям потребителей\nПриказ Росстата: Об утверждении формы  от  03.07.2013 № 257"]
[]
[null,null,null,null,"• На рабочем месте должен быть установлен MS Office 2003 SP3, 2007 SP3, 2010 с полной версией MS Excel\n\n• Макросы во время работы должны быть включены (!)\n\n• Для корректной работы отчёта требуется выбрать низкий уровень безопасности\n(В меню MS Excel 2003: Сервис | Макрос | Безопасность | выбрать пункт «Низкая безопасность» | OK)\n(В меню MS Excel 2007/2010: Параметры Excel | Центр управления безопасностью | Параметры центра управления безопасностью | Параметры макросов | Включить все макросы | ОК)\n\n• Если Вы работаете в табличном процессоре MS Excel 2007 и выше, то можете использовать для работы формат XLSM (Книга Excel с поддержкой макросов). При работе в формате XLSM заметно быстрее происходит сохранение файла, а также уменьшается размер по сравнению с форматом XLS\n\n• Не рекомендуется снимать защиту с листов и каким-либо образом модифицировать защищаемые формулы и расчётные поля, в противном случае, отчёт будет отклонён системой\n\n• При сохранении не следует выбирать формат XLSX (Книга Excel), так как в указанном формате макросы, необходимы для работы отчёта, безвозвратно удаляются"]
[]
[]
[]
[]
[]
[]
[]
[]
[]
[]
[]
[]
[]
[null,null,null,null,"A"," - предназначенные для заполнения",null,null,null,null,null,null,null,null,"A"," - обязательные для заполнения поля"]
[null,null,null,null,"A"," - с формулами и константами",null,null,null,null,null,null,null,null,"A"," - незаполняемые поля"]
[]
[]
[]
[]
[]
[]
[]
[]
[]
[]
[]
[]
[null,null,null,null,"Если в предложенном Вам списке необходимая организация, МР/МО отсутствуют, обновите реестры с помощью кнопок\n\nВ результате синхронизации с базой данных список организаций (МР/МО) будет заменён актуальным (механизм синхронизации требует подключения к сети Интернет и основан на использовании протокола HTTPS (TCP порт 443))\n\nЕсли после обновления Вам не удалось найти необходимую организацию в списке, обратитесь к ответственному за поддержание реестра Вашего региона. Информация о региональных органах регулирования доступна по ссылке:"]
[]
[]
[]
[]
[null,null,null,null,"http://www.fstrf.ru/regions/region/showlist"]
[null,null,null,null,"• Работа с отчётом начинается с выбора наименования субъекта Российской Федерации\n\n• После выбора субъекта производится обновление реестра муниципальных образований, также за одно нажатие можно обновить реестры организаций по всем сферам деятельности\n\n• Отображение и скрытие группы листов, а также автозаполнение листов, производится с помощью кнопок, либо при нажатии на ОКТМО, либо номер муниципального образования, все действия, манипуляции, вызов форм ввода на листах осуществляются двойным щелчком мыши"]
[]
[]
[]
[]
[null,null,null,null,"• При сохранении шаблона осуществляется проверка корректности данных, в том числе на наличие значений в ячейках, обязательных для заполнения\n\n• Если какая-то ячейка не удовлетворяет условию проверки, на лист «Проверка» добавляется гиперссылка на данную ячейку и указывается причина ошибки\n\n• В колонке «Статус» для каждого сообщения возможны 2 значения: ошибка и предупреждение\n\n• При наличии сообщений со статусом «Ошибка» шаблон будет отклонён системой и не будет загружен в хранилище данных, сообщения со статусом «Предупреждение» носят информационный характер, и такой шаблон будет принят системой"]
[]
[]
[]
[]
[]
[]
[]
[]
[]
[]
[]
[null,null,null,null,"Web-сайт:",null,null,"http://support.eias.ru/index.php?a=add&catid=5"]
[null,null,null,null,"E-mail:",null,null,"sp@eias.ru"]
[null,null,null,null,"Дистрибутивы:",null,null,"http://eias.ru/?page=show_distrs"]
[null,null,null,null,null,null,null,"для устранения ошибок (например, \"Compile error in hidden module\")"]
[]
[]
[]
[]
[]
[]
[]
[]
[null,null,null,null,"Указания по заполнению формы федерального статистического наблюдения"]
[]
[null,null,null,null,"1. По форме № 46-ЭЭ (передача) отчитываются юридические лица - сетевые организации, осуществляющие оказание услуг по передаче и распределению электрической энергии (мощности); ОАО «Федеральная сетевая компания ЕЭС России»."]
[null,null,null,null,"Сетевые организации, осуществляющие оказание услуг по передаче электрической энергии (мощности), - это коммерческие организации, оказывающие независимо от организационно-правовой формы субъектам оптового рынка электроэнергии (мощности) услуги по передаче электроэнергии (мощности) по магистральным линиям электропередачи.*"]
[null,null,null,null,"Распределение электрической энергии (мощности) - это оказание коммерческими организациями независимо от организационно-правовой формы субъектам оптового и розничных рынков услуг по поставке электрической энергии (мощности) потребителям по электрическим сетям (Раздел I «Основных направлений реформирования электроэнергетики Российской Федерации», одобренных постановлением Правительства Российской Федерации от 11.07.2001 № 526)."]
[null,null,null,null,"2. Юридическое лицо заполняет настоящую форму и предоставляет ее в Федеральную службу по тарифам в установленной форме"]
[null,null,null,null,"(в электронном виде через ЕИАС ФСТ России)."]
[null,null,null,null,"При наличии у юридического лица обособленных подразделений - настоящая форма заполняется как по каждому обособленному подразделению, так и по юридическому лицу без этих обособленных подразделений."]
[null,null,null,null,"Руководитель юридического лица назначает должностных лиц, уполномоченных предоставлять статистическую информацию от имени юридического лица."]
[null,null,null,null,"В адресной части указывается полное наименование отчитывающейся организации в соответствии с учредительными документами, зарегистрированными в установленном порядке, а затем в скобках - краткое наименование. На бланке формы, содержащей сведения по обособленному подразделению юридического лица, указывается наименование обособленного подразделения и юридического лица, к которому оно относится."]
[null,null,null,null,"По строке «Почтовый адрес» указывается наименование субъекта Российской Федерации, юридический адрес с почтовым индексом; если фактический адрес не совпадает с юридическим, то указывается также фактический почтовый адрес. Для обособленных подразделений, не имеющих юридического адреса, указывается почтовый адрес с почтовым индексом."]
[null,null,null,null,"Юридическое лицо проставляет в кодовой части формы в обязательном порядке в графе 2 код Общероссийского классификатора предприятий и организаций (ОКПО), в графе 5 код объекта отчета – субъекта (района) муниципального образования по Общероссийскому классификатору территориальных муниципальных образований (ОКТМО) на основании Уведомления о присвоении кодов, направляемого (выдаваемого) организациям территориальными органами Росстата."]
[null,null,null,null,"Кроме того, в свободных графах кодовой части формы проставляются:"]
[null,null,null,null,"в графе 3 - ИНН (идентификационный номер налогоплательщика);"]
[null,null,null,null,"в графе 4 - код причины постановки на учет (КПП)."]
[null,null,null,null,"Юридическое лицо, зарегистрированное на территории одного субъекта Российской Федерации и ведущее деятельность, связанную с оказанием услуг по передаче электрической энергии, на территории нескольких субъектов Российской Федерации, предоставляет форму по каждой территории, указывая в графе 6 адресной части код территории по ОКАТО."]
[]
[null,null,null,null,"По территориально-обособленным подразделениям юридического лица указывается идентификационный номер, который устанавливается территориальным органом Росстата по месту расположения территориально-обособленного подразделения."]
[null,null,null,null,"Отрицательные значения вводятся в случае перерасчета предыдущих периодов по регулируемым тарифам"]
[null,null,null,null,"3. При заполнении отчетных форм принимается:"]
[null,null,null,null,"ВН - напряжение в сети 110 кВ и выше;"]
[null,null,null,null,"СН1 - напряжение в сети 35 кВ и выше;"]
[null,null,null,null,"СН2 - напряжение в сети 10-6 кВ и выше;"]
[null,null,null,null,"НН - напряжение в сети 0,4 кВ и выше."]
[null,null,null,null,"Отнесение потребителей по уровням напряжения производится на основании договоров на оказание услуг по передаче электроэнергии с учетом особенностей отнесения потребителей к соответствующему уровню напряжения, принятых в соответствии с действующим законодательством. Определение отпуска (передачи) электроэнергии по группам потребителей не производится."]
[null,null,null,null,"4. В графе 1 содержатся наименования показателей, значения которых необходимо указать в таблице. Все значения показателей дифференцированы по уровням напряжения:"]
[null,null,null,null,"графа 4 - ВН"]
[null,null,null,null,"графа 5 - СН1"]
[null,null,null,null,"графа 6- СН2"]
[null,null,null,null,"графа 7 - НН"]
[null,null,null,null,"5. В графе 3 «Всего» приводится сумма граф 4, 5, 6 и 7."]
[null,null,null,null,"6. В строке 10 отражается общий объем электроэнергии, поступившей от других организаций в сеть отчитывающейся организации."]
[null,null,null,null,"7. В строке 20 отражается объем электроэнергии, поступившей из сетей ФСК."]
[null,null,null,null,"8. В строке 30 отражается объем электроэнергии, поступившей от генерирующих компаний и блок-станций."]
[null,null,null,null,"9. В строке 40 отражается объем электроэнергии, поступившей от смежных сетевых организаций."]
[null,null,null,null,"10. В строке 50 отражается общий объем электроэнергии, поступившей из других уровней напряжения."]
[null,null,null,null,"11. Строки 60 - 90 заполняются по уровням напряжения ВН, СН1, СН2, НН, отражают объемы электрической энергии, переданные в сеть по каждому из уровней напряжения для дальнейшей передачи по сетям."]
[null,null,null,null,"12. В строке 100 отражается общий объем электроэнергии, отпущенной из сети отчитывающейся организации."]
[null,null,null,null,"13. В строке 110 отражается объем электроэнергии, отпущенной конечным потребителям (кроме совмещающих с передачей)."]
[null,null,null,null,"14. В строке 120 отражается объем электроэнергии, отпущенной населению и приравненным к нему группам."]
[null,null,null,null,"15. В строке 130 отражается объем электроэнергии, отпущенной в другие сети."]
[null,null,null,null,"16. В строке 140 отражается объем электроэнергии, отпущенной поставщикам."]
[null,null,null,null,"17. В строке 150 отражается общий объем электроэнергии, отпущенной в сети других уровней напряжения."]
[null,null,null,null,"18. В строке 160 отражается объем электроэнергии, отпущенной на хозяйственные нужды сети."]
[null,null,null,null,"19. В строке 170 отражается объем электроэнергии, сгенерированной на собственных установках организации."]
[null,null,null,null,"20. В строке 180 отражается объем электроэнергии, относимой на собственное потребление."]
[null,null,null,null,"21. В строке 190 отражается общий объем потерь электроэнергии."]
[null,null,null,null,"22. В строке 200 отражается объем электроэнергии, относимой (израсходованной) на собственное потребление."]
[null,null,null,null,"23. В строке 210 отражается разность между общим объемом электроэнергии, поступившей из сетей других организаций и сгенерированной на установках организации, и объемом электроэнергии, переданной в сети других организаций и отпущенной на собственное потребление. Строка 210 = сумма строк (10 + 50 + 170) – сумма строк (100 + 150 + 160 + 180 + 190)."]
[null,null,null,null,"24. Строки 300 - 490 заполняются аналогично строкам 10 – 200, строка 500 = сумма строк (300 + 340 + 460) – сумма строк (390 +440 + 450 + 470 + 480)."]
[null,null,null,null,"25. В строке 600 приводятся сведения о сумме всей заявленной потребителями мощности."]
[null,null,null,null,"26. В строке 610 приводятся сведения о величине максимальной мощности принадлежащих на праве собственности или ином законном основании энергопринимающих устройств."]
[null,null,null,null,"27. В строке 620 приводятся сведения о величине резервируемой максимальной мощности, определяемой в соответствии с актом Правительства Российской Федерации, устанавливающим особенности определения стоимости услуг по передаче электрической энергии с учетом оплаты резервируемой максимальной мощности."]
[null,null,null,null,"28. В строке 700 – 790 отражается объем потребляемой электрической энергии (мощности) потребителями, заключившими или в интересах которых ГП, ЭСО, ЭСК заключили договор на оказание услуг по передаче электрической энергии (мощности), в соответствии с выбранным тарифом."]
[null,null,null,null,"29. В строке 800 - 920 указывается фактическая стоимость услуг по передаче, определенная исходя из фактических объемов отпуска электрической энергии (мощности) и установленных тарифов на услуги по передаче электрической энергии (мощности) с учетом НДС, если организация является плательщиком НДС."]
[]
[null,null,null,null,"* Данное понятие применяется только для целей заполнения данной формы"]
[]
[null,null,null,null,"E-mail:",null,null,"sp@eias.ru"]
[null,null,null,null,"Web-сайт:",null,null,"http://eias.ru/?page=show_templates"]
[]
[]
[]
[]
[]
[]
[]
[]
[]
[]
[]
[]
[]
[]
[null,null,null,null,"При наличии подключения к Интернет, можно автоматически проверять наличие доступных обновлений. Выберите способ оповещения о наличии обновлений для отчёта:"]
[]
[null,null,null,null,null,"проверять доступные обновления (рекомендуется)",null,null,null,null,null,null,null,null,null,null,null,null,null,null,null,null,null,null,null,null,"y"]
[]
[null,null,null,null,null,"никогда не проверять наличие обновлений (не рекомендуется)"]

{"sheet":"Лог обновления","index":1,"n_rows":6,"n_cols":4,"rows_kept":6,"cut":false,"hidden":true,"merged":[]}
[]
["3/17/2012  12:12:41 AM","Дата/Время","Сообщение","Статус"]
[null,"2013-08-12T16:23:27","Проверка доступных обновлений...","Информация"]
[null,"2013-08-12T16:23:28","Нет доступных обновлений для шаблона с кодом 46EP.ST!","Информация"]
[null,"2014-02-18T14:12:43","Проверка доступных обновлений...","Информация"]
[null,"2014-02-18T14:12:45","Нет доступных обновлений для шаблона с кодом 46EP.ST!","Информация"]

{"sheet":"Титульный","index":2,"n_rows":43,"n_cols":7,"rows_kept":43,"cut":false,"hidden":false,"merged":[[7,4,7,6]]}
[]
[]
[]
[]
[]
[]
[null,null,null,null,null,null,{"$f":"version","v":"Версия 1.0"}]
[null,null,null,null,"Сведения об отпуске (передаче) электроэнергии распределительными сетевыми организациями отдельным категориям потребителей"]
[]
[]
[null,null,null,null,null,"Субъект РФ","Ростовская область"]
[null,null,null,null,null,null,"Отчетный период"]
[null,null,null,null,null,"Год",2013]
[null,null,null,null,null,"Месяц","год"]
[]
[null,null,null,null,null,"Наименование организации","ОАО \"Аэропорт Ростов-на-Дону\""]
[null,null,null,null,null,"ИНН","6166011054"]
[null,null,null,null,null,"КПП","616601001"]
[null,null,null,null,null,"Вид деятельности","Сетевая компания"]
[]
[null,null,null,null,null,"Муниципальный район","Город Ростов-на-Дону"]
[]
[null,null,null,null,null,"Муниципальное образование","Ростов-на-Дону"]
[]
[null,null,null,null,null,"ОКТМО","60701000"]
[]
[null,null,null,null,null,null,"Адрес организации"]
[null,null,null,null,null,"Юридический адрес:","344009, г.Ростов-на-Дону, пр.Шолохова, 270/1"]
[null,null,null,null,null,"Почтовый адрес:","344009, г.Ростов-на-Дону, пр.Шолохова, 270/1"]
[]
[null,null,null,null,null,null,"Руководитель"]
[null,null,null,null,null,"Фамилия, имя, отчество","Бирюков Тимур Анатольевич"]
[null,null,null,null,null,"(код) номер телефона","(863) 2767-0-77"]
[]
[null,null,null,null,null,null,"Главный бухгалтер"]
[null,null,null,null,null,"Фамилия, имя, отчество","Кравченко Наталья Ивановна"]
[null,null,null,null,null,"(код) номер телефона","(863) 2767-1-64"]
[]
[null,null,null,null,null,null,"Должностное лицо, ответственное за составление формы"]
[null,null,null,null,null,"Фамилия, имя, отчество","Шрамко Николай Николаевич"]
[null,null,null,null,null,"Должность","начальник узла ЭТОП сл. ЭСТОП"]
[null,null,null,null,null,"(код) номер телефона","(863) 2767-0-00"]
[null,null,null,null,null,"e-mail","estop@aeroport-rostov.ru"]

{"sheet":"Отпуск ЭЭ сет организациями","index":3,"n_rows":86,"n_cols":17,"rows_kept":86,"cut":false,"hidden":false,"merged":[[35,3,35,9],[57,3,57,9],[61,3,61,9],[72,3,72,9],[10,3,11,3],[10,4,11,4],[10,5,11,5],[10,6,10,9],[13,3,13,9]]}
[]
[]
[]
[]
[null,null,null,null,null,"L1","L1.1","L1.2","L2","L2.1","L2.2","L3","L3.1","L3.2","L4","L4.1","L4.2"]
[]
[]
[null,null,null,"Сведения об отпуске (передаче) электроэнергии распределительными сетевыми организациями отдельным категориям потребителей"]
[null,null,null,{"$f":"IF(org=\"\",\"Не определено\",org)","v":"ОАО \"Аэропорт Ростов-на-Дону\""}]
[null,null,null,null,null,null,null,null,null,"Коды по ОКЕИ: 1000 киловатт-часов – 246, мегаватт – 215, тысяча рублей – 384"]
[null,null,null,"Наименование показателя","Код строки","Всего","В том числе по уровню напряжения"]
[null,null,null,null,null,null,"ВН","СН1","СН2","НН"]
[null,null,null,1,2,3,4,5,6,7]
[null,null,null,"Электроэнергия (тыс. кВт ч)"]
[null,null,null,"Поступление в сеть из других организаций, в том числе: ",10,{"$f":"SUM(G15:J15)","v":0}]
[null,null,null,"из сетей ФСК",20,{"$f":"SUM(G16:J16)","v":0}]
[null,null,null,"от генерирующих компаний и блок-станций",30,0]
[null,null,null,"от смежных сетевых организаций",40,0]
[null,null,null,"Поступление в сеть из других уровней напряжения (трансформация)",50,39518.743000000002,39518.743000000002]
[null,null,null,"ВН",60,39518.743000000002,39518.743000000002]
[null,null,null,"СН1",70,0]
[null,null,null,"СН2",80,0]
[null,null,null,"НН ",90,0]
[null,null,null,"Отпуск из сети, в том числе: ",100,28975.331999999999,28975.331999999999]
[null,null,null,"конечные потребители - юридические лица (кроме совмещающих с передачей)",110,22352.773999999998,7346.07,null,15006.704]
[null,null,null,"население и приравненные к ним группы",120,0]
[null,null,null,"другие сети, в том числе потребители имеющие статус ТСО",130,6622.558,6622.558]
[null,null,null,"поставщики",140,0]
[null,null,null,"Отпуск в сеть других уровней напряжения",150,0]
[null,null,null,"Хозяйственные нужды организации",160,0]
[null,null,null,"Генерация на установках организации (совмещение деятельности)",170,0]
[null,null,null,"Собственное потребление (совмещение деятельности)",180,9815.4599999999991,9815.4599999999991]
[null,null,null,"Потери, в том числе:",190,727.95100000000002,727.95100000000002]
[null,null,null,"относимые на собственное потребление ",200,97.105000000000004,97.105000000000004]
[null,null,null,"Небаланс",210,0,{"$f":"(G15+G19+G31)-(G24+G29+G30+G32+G33)","v":0},{"$f":"(H15+H19+H31)-(H24+H29+H30+H32+H33)","v":0},{"$f":"(I15+I19+I31)-(I24+I29+I30+I32+I33)","v":0},{"$f":"(J15+J19+J31)-(J24+J29+J30+J32+J33)","v":0}]
[null,null,null,"Мощность (МВт)"]
[null,null,null,"Поступление в сеть из других организаций, в том числе: ",300,7.8869999999999996,7.8869999999999996]
[null,null,null,"из сетей ФСК",310,7.8869999999999996,7.8869999999999996]
[null,null,null,"от генерирующих компаний и блок-станций",320,0]
[null,null,null,"от смежных сетевых организаций",330,0]
[null,null,null,"Поступление в сеть из других уровней напряжения (трансформация)",340,0]
[null,null,null,"ВН",350,0]
[null,null,null,"СН1",360,0]
[null,null,null,"СН2",370,0]
[null,null,null,"НН ",380,0]
[null,null,null,"Отпуск из сети, в том числе: ",390,6.2370000000000001,6.2370000000000001]
[null,null,null,"конечные потребители - юридические лица (кроме совмещающих с передачей)",400,5.2370000000000001,5.2370000000000001]
[null,null,null,"население и приравненные к ним группы",410,0]
[null,null,null,"другие сети",420,1,1]
[null,null,null,"поставщики",430,0]
[null,null,null,"Отпуск в сеть других уровней напряжения",440,0]
[null,null,null,"Хозяйственные нужды организации",450,0]
[null,null,null,"Генерация на установках организации (совмещение деятельности)",460,0]
[null,null,null,"Собственное потребление (совмещение деятельности)",470,1.5580000000000001,1.5580000000000001]
[null,null,null,"Потери, в том числе:",480,9.1999999999999998E-2,9.1999999999999998E-2]
[null,null,null,"относимые на собственное потребление ",490,0.01,0.01]
[null,null,null,"Небаланс",500,0,{"$f":"(G37+G41+G53)-(G46+G51+G52+G54+G55)","v":0},{"$f":"(H37+H41+H53)-(H46+H51+H52+H54+H55)","v":0},{"$f":"(I37+I41+I53)-(I46+I51+I52+I54+I55)","v":0},{"$f":"(J37+J41+J53)-(J46+J51+J52+J54+J55)","v":0}]
[null,null,null,"Мощность (МВт)"]
[null,null,null,"Заявленная мощность",600,8,8]
[null,null,null,"Максимальная мощность",610,8,8]
[null,null,null,"Резервируемая мощность",620,0]
[null,null,null,"Фактический полезный отпуск конечным потребителям (тыс кВт ч)"]
[null,null,null,"Полезный отпуск конечным потребителям, в том числе:",700,0]
[null,null,null,"по одноставочному тарифу",710,22352.773999999998,7346.07,null,15006.704]
[null,null,null,"по двухставочному тарифу, в том числе:",720,0]
[null,null,null,"мощность",730,0]
[null,null,null,"компенсация потерь",740,727.95100000000002,289.755,null,438.19600000000003]
[null,null,null,"Полезный отпуск потребителям ГП, ЭСО, ЭСК, в том числе:",750,0]
[null,null,null,"по одноставочному тарифу",760,0]
[null,null,null,"по двухставочному тарифу, в том числе:",770,0]
[null,null,null,"мощность",780,0]
[null,null,null,"компенсация потерь",790,0]
[null,null,null,"Стоимость услуг (тыс руб)"]
[null,null,null,"Полезный отпуск конечным потребителям, в том числе:",800,0]
[null,null,null,"по одноставочному тарифу",810,16418.147659999999,null,null,16418.147659999999]
[null,null,null,"по двухставочному тарифу, в том числе:",820,0]
[null,null,null,"мощность",830,0]
[null,null,null,"компенсация потерь",840,1860.2721999999999,739.43219999999997,null,1120.8399999999999]
[null,null,null,"Полезный отпуск потребителям ГП, ЭСО, ЭСК, в том числе:",850,0]
[null,null,null,"по одноставочному тарифу",860,{"$f":"SUM(G80:J80)","v":0}]
[null,null,null,"по двухставочному тарифу, в том числе:",870,0]
[null,null,null,"мощность",880,0]
[null,null,null,"компенсация потерь",890,0]
[null,null,null,"Стоимость услуг ФСК, в том числе:",900,0]
[null,null,null,"компенсация потерь",910,0]
[null,null,null,"мощность",920,0]

{"sheet":"Комментарии","index":4,"n_rows":14,"n_cols":5,"rows_kept":14,"cut":false,"hidden":false,"merged":[]}
[]
[]
[]
[]
[]
[]
[]
[null,null,null,"Комментарии"]
[null,null,null,{"$f":"IF(org=\"\",\"Не определено\",org)","v":"ОАО \"Аэропорт Ростов-на-Дону\""}]
[]
[null,null,null,"№ п/п","Комментарий"]
[null,null,null,1,2]
[null,null,null,0]
[null,null,null,null,"Добавить комментарий"]

{"sheet":"Проверка","index":5,"n_rows":5,"n_cols":4,"rows_kept":5,"cut":false,"hidden":false,"merged":[[1,1,1,3]]}
[]
[null,"Результат проверки"]
[null,{"$f":"IF(org=\"\",\"Не определено\",org)","v":"ОАО \"Аэропорт Ростов-на-Дону\""}]
[]
[null,"Ссылка","Причина","Статус"]

{"sheet":"Statistic","index":6,"n_rows":3,"n_cols":3,"rows_kept":3,"cut":false,"hidden":true,"merged":[]}
[3]
["12.08.2013 16:23:28","12.0","Windows (32-bit) NT 5.01"]
["18.02.2014 14:12:46","12.0","Windows (32-bit) NT 5.01"]

{"sheet":"TEHSHEET","index":7,"n_rows":84,"n_cols":11,"rows_kept":84,"cut":false,"hidden":true,"merged":[]}
[null,"Алтайский край",null,null,"MONTH","YEAR","spr_type_topl","spr_type_topl_ed","spr_type_topl_pok","spr _5_1","spr _5_2"]
[0,"Амурская область",null,2,"январь",2013,"газ","руб./тыс. м3",1.1499999999999999,92,155.30000000000001]
[null,"Архангельская область",null,3,"февраль",2014,"нефть","руб./т",1.43,86,166.1]
[null,"Астраханская область",null,4,"март",2015,"уголь","руб./т",0.86499999999999999,80,178.6]
[null,"Белгородская область",null,6,"апрель",2016,"дрова","руб./т",null,90,158.69999999999999]
[null,"Брянская область",null,14,"май",null,"щепа","руб./т",null,85,168.1]
[null,"Владимирская область",null,15,"июнь",null,"пилеты","руб./т",0.6,85,168.1]
[null,"Волгоградская область",null,16,"июль",null,"дизельное топливо","руб./т",1.4,86,166.1]
[null,"Вологодская область",null,17,"август",null,"электроэнергия","руб./т.кВтч",0.123,99,144.30000000000001]
[null,"Воронежская область",null,19,"сентябрь",null,"мазут","руб./т",1.4,86,166.1]
[null,"г.Байконур",null,20,"октябрь"]
[null,"г. Москва",null,21,"ноябрь"]
[null,"г.Санкт-Петербург",null,22,"декабрь"]
[null,"Еврейская автономная область",null,24,"год"]
[null,"Забайкальский край",null,25]
[null,"Ивановская область"]
[null,"Иркутская область"]
[null,"Кабардино-Балкарская республика"]
[null,"Калининградская область"]
[null,"Калужская область"]
[null,"Камчатский край"]
[null,"Карачаево-Черкесская республика"]
[null,"Кемеровская область"]
[null,"Кировская область"]
[null,"Костромская область"]
[null,"Краснодарский край"]
[null,"Красноярский край"]
[null,"Курганская область"]
[null,"Курская область"]
[null,"Ленинградская область"]
[null,"Липецкая область"]
[null,"Магаданская область"]
[null,"Московская область"]
[null,"Мурманская область"]
[null,"Ненецкий автономный округ"]
[null,"Нижегородская область"]
[null,"Новгородская область"]
[null,"Новосибирская область"]
[null,"Омская область"]
[null,"Оренбургская область"]
[null,"Орловская область"]
[null,"Пензенская область"]
[null,"Пермский край"]
[null,"Приморский край"]
[null,"Псковская область"]
[null,"Республика Адыгея"]
[null,"Республика Алтай"]
[null,"Республика Башкортостан"]
[null,"Республика Бурятия"]
[null,"Республика Дагестан"]
[null,"Республика Ингушетия"]
[null,"Республика Калмыкия"]
[null,"Республика Карелия"]
[null,"Республика Коми"]
[null,"Республика Марий Эл"]
[null,"Республика Мордовия"]
[null,"Республика Саха (Якутия)"]
[null,"Республика Северная Осетия-Алания"]
[null,"Республика Татарстан"]
[null,"Республика Тыва"]
[null,"Республика Хакасия"]
[null,"Ростовская область"]
[null,"Рязанская область"]
[null,"Самарская область"]
[null,"Саратовская область"]
[null,"Сахалинская область"]
[null,"Свердловская область"]
[null,"Смоленская область"]
[null,"Ставропольский край"]
[null,"Тамбовская область"]
[null,"Тверская область"]
[null,"Томская область"]
[null,"Тульская область"]
[null,"Тюменская область"]
[null,"Удмуртская республика"]
[null,"Ульяновская область"]
[null,"Хабаровский край"]
[null,"Ханты-Мансийский автономный округ"]
[null,"Челябинская область"]
[null,"Чеченская республика"]
[null,"Чувашская республика"]
[null,"Чукотский автономный округ"]
[null,"Ямало-Ненецкий автономный округ"]
[null,"Ярославская область"]

{"sheet":"et_union","index":8,"n_rows":3,"n_cols":4,"rows_kept":3,"cut":false,"hidden":true,"merged":[]}
[]
["et_com"]
[null,null,"О",1]

{"sheet":"AllSheetsInThisWorkbook","index":9,"n_rows":19,"n_cols":2,"rows_kept":19,"cut":false,"hidden":true,"merged":[]}
["Расчетные листы","Скрытые листы"]
["Инструкция","Statistic"]
["Лог обновления","TEHSHEET"]
["Титульный","et_union"]
["Отпуск ЭЭ сет организациями","AllSheetsInThisWorkbook"]
["Комментарии","mod_00"]
["Проверка","mod_01"]
[null,"mod_11"]
[null,"modComm"]
[null,"modButton"]
[null,"REESTR_ORG"]
[null,"REESTR_MO"]
[null,"modfrmReestr"]
[null,"modReestr"]
[null,"modListProv"]
[null,"modUpdTemplMain"]
[null,"modDoubleClick"]
[null,"modHyperlink"]
[null,"modfrmDateChoose"]

{"sheet":"mod_00","index":10,"n_rows":0,"n_cols":0,"rows_kept":0,"cut":false,"hidden":true,"merged":[]}

{"sheet":"mod_01","index":11,"n_rows":0,"n_cols":0,"rows_kept":0,"cut":false,"hidden":true,"merged":[]}

{"sheet":"mod_11","index":12,"n_rows":0,"n_cols":0,"rows_kept":0,"cut":false,"hidden":true,"merged":[]}

{"sheet":"modComm","index":13,"n_rows":0,"n_cols":0,"rows_kept":0,"cut":false,"hidden":true,"merged":[]}

{"sheet":"modButton","index":14,"n_rows":0,"n_cols":0,"rows_kept":0,"cut":false,"hidden":true,"merged":[]}

{"sheet":"REESTR_ORG","index":15,"n_rows":143,"n_cols":12,"rows_kept":143,"cut":false,"hidden":true,"merged":[]}
["№","NSRF","MR_NAME","OKTMO_MR_NAME","MO_NAME","OKTMO_NAME","RST_ORG_ID","ORG_NAME","INN_NAME","KPP_NAME","VDET_NAME"]
[1,"Ростовская область","Белокалитвинский район","60606000","Белокалитвинское городское поселение","60606101","26444834","ЗАО \"Алкоа Металлург Рус\"","7709534220","615250001","Сетевая компания","EE"]
[2,"Ростовская область","Город Батайск","60707000","Батайск","60707000","27066241","ООО \"Юг-Энерго\"","6141034966","614101001","Сетевая компания","EE"]
[3,"Ростовская область","Город Волгодонск","60712000","Волгодонск","60712000","26526767","МУП \"Волгодонская городская электрическая сеть\"","6143014080","614301001","Сетевая компания","EE"]
[4,"Ростовская область","Город Волгодонск","60712000","Волгодонск","60712000","26465362","ОАО \"Энергия\"","6143012100","614301001","Сетевая компания","EE"]
[5,"Ростовская область","Город Волгодонск","60712000","Волгодонск","60712000","26525135","ООО \"ЛУКОЙЛ-Ростовэнерго\"","6164288981","616301001","Региональная генерация","EE"]
[6,"Ростовская область","Город Волгодонск","60712000","Волгодонск","60712000","26525135","ООО \"ЛУКОЙЛ-Ростовэнерго\"","6164288981","616301001","Станция - поставщик ЭЭ","EE"]
[7,"Ростовская область","Город Волгодонск","60712000","Волгодонск","60712000","26799656","ООО \"Основные фонды (Волгодонск)\"","6143074065","614301001","Сбытовая компания","EE"]
[8,"Ростовская область","Город Волгодонск","60712000","Волгодонск","60712000","27016832","ООО \"Электросбыт\"","6143060337","614301001","Сбытовая компания","EE"]
[9,"Ростовская область","Город Волгодонск","60712000","Волгодонск","60712000","27666876","Филиал ОАО \"Концерн Росэнергоатом\" \"Ростовская атомная станция\"","7721632827","614343002","Региональная генерация","EE"]
[10,"Ростовская область","Город Волгодонск","60712000","Волгодонск","60712000","27666876","Филиал ОАО \"Концерн Росэнергоатом\" \"Ростовская атомная станция\"","7721632827","614343002","Станция - поставщик ЭЭ","EE"]
[11,"Ростовская область","Город Гуково","60715000","Гуково","60715000","26465366","ЗАО \"Центральная энергосетевая компания\"","6144010057","614401001","Сетевая компания","EE"]
[12,"Ростовская область","Город Донецк","60717000","Донецк","60717000","27567281","ООО \"ДОНЭКС\"","6145010317","614501001","Сетевая компания","EE"]
[13,"Ростовская область","Город Каменск-Шахтинский","60719000","Каменск-Шахтинский","60719000","26524443","ООО \"Каменский завод газоиспользующего оборудования\"","6147018880","614701001","Сетевая компания","EE"]
[14,"Ростовская область","Город Новочеркасск","60727000","Новочеркасск","60727000","26438194","ООО \"Производственная компания \"Новочеркасский электровозостроительный завод\"","6150040250","997850001","Сетевая компания","EE"]
[15,"Ростовская область","Город Новочеркасск","60727000","Новочеркасск","60727000","26448923","ООО \"Фирма \"Ток\"","6150016240","615001001","Сетевая компания","EE"]
[16,"Ростовская область","Город Новочеркасск","60727000","Новочеркасск","60727000","26449347","Филиал ОАО \"ОГК-2\" Новочеркасская ГРЭС","2607018122","615002001","Региональная генерация","EE"]
[17,"Ростовская область","Город Ростов-на-Дону","60701000","Ростов-на-Дону","60701000","26465355","ЗАО \"ДЭС\"","6167109550","616701001","Сбытовая компания","EE"]
[18,"Ростовская область","Город Ростов-на-Дону","60701000","Ростов-на-Дону","60701000","28056565","МКП \"Ростгорсвет\"","6164246452","616401001","Сетевая компания","EE"]
[19,"Ростовская область","Город Ростов-на-Дону","60701000","Ростов-на-Дону","60701000","26458325","ОАО \"Алмаз\"","6166055693","616601001","Сетевая компания","EE"]
[20,"Ростовская область","Город Ростов-на-Дону","60701000","Ростов-на-Дону","60701000","26526775","ОАО \"Аэропорт Ростов-на-Дону\"","6166011054","616601001","Сетевая компания","EE"]
[21,"Ростовская область","Город Ростов-на-Дону","60701000","Ростов-на-Дону","60701000","26786693","ОАО \"Десятый подшипниковый завод\"","6168000354","615250001","Сетевая компания","EE"]
[22,"Ростовская область","Город Ростов-на-Дону","60701000","Ростов-на-Дону","60701000","26457273","ОАО \"Донэнерго\"","6163089292","616301001","Сетевая компания","EE"]
[23,"Ростовская область","Город Ростов-на-Дону","60701000","Ростов-на-Дону","60701000","26446518","ОАО \"Издательство Молот\"","6168002880","616801001","Сетевая компания","EE"]
[24,"Ростовская область","Город Ростов-на-Дону","60701000","Ростов-на-Дону","60701000","26436886","ОАО \"Коммунальщик Дона\"","6166050504","616601001","Сетевая компания","EE"]
[25,"Ростовская область","Город Ростов-на-Дону","60701000","Ростов-на-Дону","60701000","26318876","ОАО \"Мосэнергосбыт\"","7736520080","997450001","Сбытовая компания","EE"]
[26,"Ростовская область","Город Ростов-на-Дону","60701000","Ростов-на-Дону","60701000","26651986","ОАО \"Оборонэнерго\" Филиал \"Южный\"","7704726225","616843001","Сетевая компания","EE"]
[27,"Ростовская область","Город Ростов-на-Дону","60701000","Ростов-на-Дону","60701000","26465376","ОАО \"Продмаш\"","6167053258","616701001","Сетевая компания","EE"]
[28,"Ростовская область","Город Ростов-на-Дону","60701000","Ростов-на-Дону","60701000","26465384","ОАО \"Энергосбыт Ростовэнерго\"","6168002922","615250001","Сбытовая компания","EE"]
[29,"Ростовская область","Город Ростов-на-Дону","60701000","Ростов-на-Дону","60701000","26557691","ОАО Нижноватомэнергосбыт","5260099456","616302002","Сбытовая компания","EE"]
[30,"Ростовская область","Город Ростов-на-Дону","60701000","Ростов-на-Дону","60701000","28056573","ООО \"Агро-Маркет\"","6163080892","616301001","Сетевая компания","EE"]
[31,"Ростовская область","Город Ростов-на-Дону","60701000","Ростов-на-Дону","60701000","26465370","ООО \"Горизонт-Энерго\"","6161031473","616101001","Сетевая компания","EE"]
[32,"Ростовская область","Город Ростов-на-Дону","60701000","Ростов-на-Дону","60701000","27546170","ООО \"Горизонт-Энергосбыт\"","6161044659","616101001","Сбытовая компания","EE"]
[33,"Ростовская область","Город Ростов-на-Дону","60701000","Ростов-на-Дону","60701000","27681989","ООО \"ДЭКО\"","6168056967","616801001","Сетевая компания","EE"]
[34,"Ростовская область","Город Ростов-на-Дону","60701000","Ростов-на-Дону","60701000","26555536","ООО \"Донэнерготранзит\"","6163075726","616401001","Сетевая компания","EE"]
[35,"Ростовская область","Город Ростов-на-Дону","60701000","Ростов-на-Дону","60701000","26525135","ООО \"ЛУКОЙЛ-Ростовэнерго\"","6164288981","616301001","Региональная генерация","EE"]
[36,"Ростовская область","Город Ростов-на-Дону","60701000","Ростов-на-Дону","60701000","26525135","ООО \"ЛУКОЙЛ-Ростовэнерго\"","6164288981","616301001","Станция - поставщик ЭЭ","EE"]
[37,"Ростовская область","Город Ростов-на-Дону","60701000","Ростов-на-Дону","60701000","26764871","ООО \"ЛУКОЙЛ-Экоэнерго\"","3015087458","615250001","Региональная генерация","EE"]
[38,"Ростовская область","Город Ростов-на-Дону","60701000","Ростов-на-Дону","60701000","26764871","ООО \"ЛУКОЙЛ-Экоэнерго\"","3015087458","615250001","Станция - поставщик ЭЭ","EE"]
[39,"Ростовская область","Город Ростов-на-Дону","60701000","Ростов-на-Дону","60701000","27066276","ООО \"МеталлЭнергоРесурс\"","6113016980","616201001","Сетевая компания","EE"]
[40,"Ростовская область","Город Ростов-на-Дону","60701000","Ростов-на-Дону","60701000","26773374","ООО \"Ника\"","6140017855","614001001","Сетевая компания","EE"]
[41,"Ростовская область","Город Ростов-на-Дону","60701000","Ростов-на-Дону","60701000","26448728","ООО \"Ростсельмашэнерго\"","6166047727","616601001","Сетевая компания","EE"]
[42,"Ростовская область","Город Ростов-на-Дону","60701000","Ростов-на-Дону","60701000","26448728","ООО \"Ростсельмашэнерго\"","6166047727","616601001","Региональная генерация","EE"]
[43,"Ростовская область","Город Ростов-на-Дону","60701000","Ростов-на-Дону","60701000","27016835","ООО \"Ростсельмашэнергосбыт\"","6166055647","616601001","Сбытовая компания","EE"]
[44,"Ростовская область","Город Ростов-на-Дону","60701000","Ростов-на-Дону","60701000","27611004","ООО \"ЭнергоЭффективность\"","7706704202","616343001","Сбытовая компания","EE"]
[45,"Ростовская область","Город Ростов-на-Дону","60701000","Ростов-на-Дону","60701000","27016838","ООО \"Энергосбыт-Первомайский\"","6166055460","616601001","Сбытовая компания","EE"]
[46,"Ростовская область","Город Ростов-на-Дону","60701000","Ростов-на-Дону","60701000","26770199","ООО \"Энергосоюз\"","6168002376","616801001","Сетевая компания","EE"]
[47,"Ростовская область","Город Ростов-на-Дону","60701000","Ростов-на-Дону","60701000","26322307","Открытое акционерное общество \"Российские железные дороги\" структурное подразделение Энергосбыт\" филиала  \"Северо-Кавказская железная дорога\"","7708503727","616731005","Сетевая компания","EE"]
[48,"Ростовская область","Город Ростов-на-Дону","60701000","Ростов-на-Дону","60701000","26518665","Саратовский филиал ООО \"Газпром энерго\"","7736186950","645302001","Сетевая компания","EE"]
[49,"Ростовская область","Город Ростов-на-Дону","60701000","Ростов-на-Дону","60701000","26816056","Северо-Кавказская дирекция по тепловодоснабжению структурное подразделение Центральной дирекции по тепловодоснабжению - филиала ОАО \"РЖД\"","7708503727","616745019","Сетевая компания","EE"]
[50,"Ростовская область","Город Ростов-на-Дону","60701000","Ростов-на-Дону","60701000","26322297","Северо-Кавказский филиал ООО \"Газпром энерго\"","7736186950","263602001","Сетевая компания","EE"]
[51,"Ростовская область","Город Ростов-на-Дону","60701000","Ростов-на-Дону","60701000","26516027","филиал ОАО \"МРСК Юга\"-\"Ростовэнерго\"","6164266561","616402001","Сетевая компания","EE"]
[52,"Ростовская область","Город Таганрог","60737000","Таганрог","60737000","28136276","ЗАО \"РСК\"","6154567993","615401001","Сетевая компания","EE"]
[53,"Ростовская область","Город Таганрог","60737000","Таганрог","60737000","26446567","МУП \"Таганрогэнерго\"","6154085894","615401001","Сетевая компания","EE"]
[54,"Ростовская область","Город Таганрог","60737000","Таганрог","60737000","26465382","ООО \"РАДИУС\"","6154083590","615401001","Сетевая компания","EE"]
[55,"Ростовская область","Город Шахты","60740000","Шахты","60740000","26446563","ОАО \"Шахтинский завод Гидропривод\"","6155010796","615501001","Сетевая компания","EE"]
[56,"Ростовская область","Город Шахты","60740000","Шахты","60740000","26779833","ООО \"Прометей\"","6155050076","615501001","Сетевая компания","EE"]
[57,"Ростовская область","Город Шахты","60740000","Шахты","60740000","26449191","ООО \"Шахтинская ГТЭС\"","6155043551","615501001","Региональная генерация","EE"]
[58,"Ростовская область","Город Шахты","60740000","Шахты","60740000","26449191","ООО \"Шахтинская ГТЭС\"","6155043551","615501001","Станция - поставщик ЭЭ","EE"]
[59,"Ростовская область","Город Шахты","60740000","Шахты","60740000","26465372","ООО \"Энерготранс\"","6155921809","615501001","Сетевая компания","EE"]
[60,"Ростовская область","Каменский район","60623000","Астаховское сельское поселение","60623405","26816056","Северо-Кавказская дирекция по тепловодоснабжению структурное подразделение Центральной дирекции по тепловодоснабжению - филиала ОАО \"РЖД\"","7708503727","616745019","Сетевая компания","EE"]
[61,"Ростовская область","Каменский район","60623000","Богдановское сельское поселение","60623410","26816056","Северо-Кавказская дирекция по тепловодоснабжению структурное подразделение Центральной дирекции по тепловодоснабжению - филиала ОАО \"РЖД\"","7708503727","616745019","Сетевая компания","EE"]
[62,"Ростовская область","Каменский район","60623000","Волченское сельское поселение","60623415","26816056","Северо-Кавказская дирекция по тепловодоснабжению структурное подразделение Центральной дирекции по тепловодоснабжению - филиала ОАО \"РЖД\"","7708503727","616745019","Сетевая компания","EE"]
[63,"Ростовская область","Каменский район","60623000","Глубокинское городское поселение","60623151","26816056","Северо-Кавказская дирекция по тепловодоснабжению структурное подразделение Центральной дирекции по тепловодоснабжению - филиала ОАО \"РЖД\"","7708503727","616745019","Сетевая компания","EE"]
[64,"Ростовская область","Каменский район","60623000","Груциновское сельское поселение","60623460","26816056","Северо-Кавказская дирекция по тепловодоснабжению структурное подразделение Центральной дирекции по тепловодоснабжению - филиала ОАО \"РЖД\"","7708503727","616745019","Сетевая компания","EE"]
[65,"Ростовская область","Каменский район","60623000","Гусевское сельское поселение","60623420","26816056","Северо-Кавказская дирекция по тепловодоснабжению структурное подразделение Центральной дирекции по тепловодоснабжению - филиала ОАО \"РЖД\"","7708503727","616745019","Сетевая компания","EE"]
[66,"Ростовская область","Каменский район","60623000","Калитвенское сельское поселение","60623425","26816056","Северо-Кавказская дирекция по тепловодоснабжению структурное подразделение Центральной дирекции по тепловодоснабжению - филиала ОАО \"РЖД\"","7708503727","616745019","Сетевая компания","EE"]
[67,"Ростовская область","Каменский район","60623000","Красновское сельское поселение","60623430","26816056","Северо-Кавказская дирекция по тепловодоснабжению структурное подразделение Центральной дирекции по тепловодоснабжению - филиала ОАО \"РЖД\"","7708503727","616745019","Сетевая компания","EE"]
[68,"Ростовская область","Каменский район","60623000","Малокаменское сельское поселение","60623440","26816056","Северо-Кавказская дирекция по тепловодоснабжению структурное подразделение Центральной дирекции по тепловодоснабжению - филиала ОАО \"РЖД\"","7708503727","616745019","Сетевая компания","EE"]
[69,"Ростовская область","Каменский район","60623000","Пиховкинское сельское поселение","60623455","26816056","Северо-Кавказская дирекция по тепловодоснабжению структурное подразделение Центральной дирекции по тепловодоснабжению - филиала ОАО \"РЖД\"","7708503727","616745019","Сетевая компания","EE"]
[70,"Ростовская область","Каменский район","60623000","Старостаничное сельское поселение","60623465","26816056","Северо-Кавказская дирекция по тепловодоснабжению структурное подразделение Центральной дирекции по тепловодоснабжению - филиала ОАО \"РЖД\"","7708503727","616745019","Сетевая компания","EE"]
[71,"Ростовская область","Каменский район","60623000","Уляшкинское сельское поселение","60623470","26816056","Северо-Кавказская дирекция по тепловодоснабжению структурное подразделение Центральной дирекции по тепловодоснабжению - филиала ОАО \"РЖД\"","7708503727","616745019","Сетевая компания","EE"]
[72,"Ростовская область","Красносулинский район","60626000","Красносулинское городское поселение","60626101","26449160","ОАО \"Экспериментальная ТЭС\"","6148012030","614801001","Региональная генерация","EE"]
[73,"Ростовская область","Красносулинский район","60626000","Красносулинское городское поселение","60626101","26449160","ОАО \"Экспериментальная ТЭС\"","6148012030","614801001","Станция - поставщик ЭЭ","EE"]
[74,"Ростовская область","Миллеровский район","60632000","Верхнеталовское сельское поселение","60632402","26816056","Северо-Кавказская дирекция по тепловодоснабжению структурное подразделение Центральной дирекции по тепловодоснабжению - филиала ОАО \"РЖД\"","7708503727","616745019","Сетевая компания","EE"]
[75,"Ростовская область","Миллеровский район","60632000","Волошинское сельское поселение","60632405","26816056","Северо-Кавказская дирекция по тепловодоснабжению структурное подразделение Центральной дирекции по тепловодоснабжению - филиала ОАО \"РЖД\"","7708503727","616745019","Сетевая компания","EE"]
[76,"Ростовская область","Миллеровский район","60632000","Дегтевское сельское поселение","60632415","26816056","Северо-Кавказская дирекция по тепловодоснабжению структурное подразделение Центральной дирекции по тепловодоснабжению - филиала ОАО \"РЖД\"","7708503727","616745019","Сетевая компания","EE"]
[77,"Ростовская область","Миллеровский район","60632000","Колодезянское сельское поселение","60632420","26816056","Северо-Кавказская дирекция по тепловодоснабжению структурное подразделение Центральной дирекции по тепловодоснабжению - филиала ОАО \"РЖД\"","7708503727","616745019","Сетевая компания","EE"]
[78,"Ростовская область","Миллеровский район","60632000","Криворожское сельское поселение","60632425","26816056","Северо-Кавказская дирекция по тепловодоснабжению структурное подразделение Центральной дирекции по тепловодоснабжению - филиала ОАО \"РЖД\"","7708503727","616745019","Сетевая компания","EE"]
[79,"Ростовская область","Миллеровский район","60632000","Мальчевское сельское поселение","60632435","26816056","Северо-Кавказская дирекция по тепловодоснабжению структурное подразделение Центральной дирекции по тепловодоснабжению - филиала ОАО \"РЖД\"","7708503727","616745019","Сетевая компания","EE"]
[80,"Ростовская область","Миллеровский район","60632000","Миллеровское городское поселение","60632101","26816056","Северо-Кавказская дирекция по тепловодоснабжению структурное подразделение Центральной дирекции по тепловодоснабжению - филиала ОАО \"РЖД\"","7708503727","616745019","Сетевая компания","EE"]
[81,"Ростовская область","Миллеровский район","60632000","Ольхово-Рогское сельское поселение","60632455","26816056","Северо-Кавказская дирекция по тепловодоснабжению структурное подразделение Центральной дирекции по тепловодоснабжению - филиала ОАО \"РЖД\"","7708503727","616745019","Сетевая компания","EE"]
[82,"Ростовская область","Миллеровский район","60632000","Первомайское сельское поселение","60632460","26816056","Северо-Кавказская дирекция по тепловодоснабжению структурное подразделение Центральной дирекции по тепловодоснабжению - филиала ОАО \"РЖД\"","7708503727","616745019","Сетевая компания","EE"]
[83,"Ростовская область","Миллеровский район","60632000","Сулинское сельское поселение","60632467","26816056","Северо-Кавказская дирекция по тепловодоснабжению структурное подразделение Центральной дирекции по тепловодоснабжению - филиала ОАО \"РЖД\"","7708503727","616745019","Сетевая компания","EE"]
[84,"Ростовская область","Миллеровский район","60632000","Титовское сельское поселение","60632470","26816056","Северо-Кавказская дирекция по тепловодоснабжению структурное подразделение Центральной дирекции по тепловодоснабжению - филиала ОАО \"РЖД\"","7708503727","616745019","Сетевая компания","EE"]
[85,"Ростовская область","Миллеровский район","60632000","Треневское сельское поселение","60632430","26816056","Северо-Кавказская дирекция по тепловодоснабжению структурное подразделение Центральной дирекции по тепловодоснабжению - филиала ОАО \"РЖД\"","7708503727","616745019","Сетевая компания","EE"]
[86,"Ростовская область","Миллеровский район","60632000","Туриловское сельское поселение","60632475","26816056","Северо-Кавказская дирекция по тепловодоснабжению структурное подразделение Центральной дирекции по тепловодоснабжению - филиала ОАО \"РЖД\"","7708503727","616745019","Сетевая компания","EE"]
[87,"Ростовская область","Морозовский район","60634000","Вознесенское сельское поселение","60634415","26816056","Северо-Кавказская дирекция по тепловодоснабжению структурное подразделение Центральной дирекции по тепловодоснабжению - филиала ОАО \"РЖД\"","7708503727","616745019","Сетевая компания","EE"]
[88,"Ростовская область","Морозовский район","60634000","Вольно-Донское сельское поселение","60634420","26816056","Северо-Кавказская дирекция по тепловодоснабжению структурное подразделение Центральной дирекции по тепловодоснабжению - филиала ОАО \"РЖД\"","7708503727","616745019","Сетевая компания","EE"]
[89,"Ростовская область","Морозовский район","60634000","Гагаринское сельское поселение","60634423","26816056","Северо-Кавказская дирекция по тепловодоснабжению структурное подразделение Центральной дирекции по тепловодоснабжению - филиала ОАО \"РЖД\"","7708503727","616745019","Сетевая компания","EE"]
[90,"Ростовская область","Морозовский район","60634000","Грузиновское сельское поселение","60634425","26816056","Северо-Кавказская дирекция по тепловодоснабжению структурное подразделение Центральной дирекции по тепловодоснабжению - филиала ОАО \"РЖД\"","7708503727","616745019","Сетевая компания","EE"]
[91,"Ростовская область","Морозовский район","60634000","Знаменское сельское поселение","60634430","26816056","Северо-Кавказская дирекция по тепловодоснабжению структурное подразделение Центральной дирекции по тепловодоснабжению - филиала ОАО \"РЖД\"","7708503727","616745019","Сетевая компания","EE"]
[92,"Ростовская область","Морозовский район","60634000","Костино-Быстрянское сельское поселение","60634440","26816056","Северо-Кавказская дирекция по тепловодоснабжению структурное подразделение Центральной дирекции по тепловодоснабжению - филиала ОАО \"РЖД\"","7708503727","616745019","Сетевая компания","EE"]
[93,"Ростовская область","Морозовский район","60634000","Морозовское городское поселение","60634101","26816056","Северо-Кавказская дирекция по тепловодоснабжению структурное подразделение Центральной дирекции по тепловодоснабжению - филиала ОАО \"РЖД\"","7708503727","616745019","Сетевая компания","EE"]
[94,"Ростовская область","Морозовский район","60634000","Парамоновское сельское поселение","60634460","26816056","Северо-Кавказская дирекция по тепловодоснабжению структурное подразделение Центральной дирекции по тепловодоснабжению - филиала ОАО \"РЖД\"","7708503727","616745019","Сетевая компания","EE"]
[95,"Ростовская область","Морозовский район","60634000","Широко-Атамановское сельское поселение","60634459","26816056","Северо-Кавказская дирекция по тепловодоснабжению структурное подразделение Центральной дирекции по тепловодоснабжению - филиала ОАО \"РЖД\"","7708503727","616745019","Сетевая компания","EE"]
[96,"Ростовская область","Неклиновский район","60636000","Приморское сельское поселение","60636452","27567300","ООО \"ПримЭнерго\"","6123022171","612301001","Сетевая компания","EE"]
[97,"Ростовская область","Октябрьский район","60641000","Каменоломненское городское поселение","60641151","26465378","ООО \"Неотон\"","7704557182","612501001","Сетевая компания","EE"]
[98,"Ростовская область","Песчанокопский район","60644000","Богородицкое сельское поселение","60644411","26816056","Северо-Кавказская дирекция по тепловодоснабжению структурное подразделение Центральной дирекции по тепловодоснабжению - филиала ОАО \"РЖД\"","7708503727","616745019","Сетевая компания","EE"]
[99,"Ростовская область","Песчанокопский район","60644000","Жуковское сельское поселение","60644422","26816056","Северо-Кавказская дирекция по тепловодоснабжению структурное подразделение Центральной дирекции по тепловодоснабжению - филиала ОАО \"РЖД\"","7708503727","616745019","Сетевая компания","EE"]
[100,"Ростовская область","Песчанокопский район","60644000","Зареченское сельское поселение","60644426","26816056","Северо-Кавказская дирекция по тепловодоснабжению структурное подразделение Центральной дирекции по тепловодоснабжению - филиала ОАО \"РЖД\"","7708503727","616745019","Сетевая компания","EE"]
[101,"Ростовская область","Песчанокопский район","60644000","Краснополянское сельское поселение","60644433","26816056","Северо-Кавказская дирекция по тепловодоснабжению структурное подразделение Центральной дирекции по тепловодоснабжению - филиала ОАО \"РЖД\"","7708503727","616745019","Сетевая компания","EE"]
[102,"Ростовская область","Песчанокопский район","60644000","Летницкое сельское поселение","60644444","26816056","Северо-Кавказская дирекция по тепловодоснабжению структурное подразделение Центральной дирекции по тепловодоснабжению - филиала ОАО \"РЖД\"","7708503727","616745019","Сетевая компания","EE"]
[103,"Ростовская область","Песчанокопский район","60644000","Песчанокопское сельское поселение","60644455","26816056","Северо-Кавказская дирекция по тепловодоснабжению структурное подразделение Центральной дирекции по тепловодоснабжению - филиала ОАО \"РЖД\"","7708503727","616745019","Сетевая компания","EE"]
[104,"Ростовская область","Песчанокопский район","60644000","Поливянское сельское поселение","60644466","26816056","Северо-Кавказская дирекция по тепловодоснабжению структурное подразделение Центральной дирекции по тепловодоснабжению - филиала ОАО \"РЖД\"","7708503727","616745019","Сетевая компания","EE"]
[105,"Ростовская область","Песчанокопский район","60644000","Развильненское сельское поселение","60644477","26816056","Северо-Кавказская дирекция по тепловодоснабжению структурное подразделение Центральной дирекции по тепловодоснабжению - филиала ОАО \"РЖД\"","7708503727","616745019","Сетевая компания","EE"]
[106,"Ростовская область","Песчанокопский район","60644000","Рассыпненское сельское поселение","60644488","26816056","Северо-Кавказская дирекция по тепловодоснабжению структурное подразделение Центральной дирекции по тепловодоснабжению - филиала ОАО \"РЖД\"","7708503727","616745019","Сетевая компания","EE"]
[107,"Ростовская область","Сальский район","60650000","Буденновское сельское поселение","60650410","26816056","Северо-Кавказская дирекция по тепловодоснабжению структурное подразделение Центральной дирекции по тепловодоснабжению - филиала ОАО \"РЖД\"","7708503727","616745019","Сетевая компания","EE"]
[108,"Ростовская область","Сальский район","60650000","Гигантовское сельское поселение","60650412","26816056","Северо-Кавказская дирекция по тепловодоснабжению структурное подразделение Центральной дирекции по тепловодоснабжению - филиала ОАО \"РЖД\"","7708503727","616745019","Сетевая компания","EE"]
[109,"Ростовская область","Сальский район","60650000","Екатериновское сельское поселение","60650415","26816056","Северо-Кавказская дирекция по тепловодоснабжению структурное подразделение Центральной дирекции по тепловодоснабжению - филиала ОАО \"РЖД\"","7708503727","616745019","Сетевая компания","EE"]
[110,"Ростовская область","Сальский район","60650000","Ивановское сельское поселение","60650420","26816056","Северо-Кавказская дирекция по тепловодоснабжению структурное подразделение Центральной дирекции по тепловодоснабжению - филиала ОАО \"РЖД\"","7708503727","616745019","Сетевая компания","EE"]
[111,"Ростовская область","Сальский район","60650000","Кручено-Балковское сельское поселение","60650425","26816056","Северо-Кавказская дирекция по тепловодоснабжению структурное подразделение Центральной дирекции по тепловодоснабжению - филиала ОАО \"РЖД\"","7708503727","616745019","Сетевая компания","EE"]
[112,"Ростовская область","Сальский район","60650000","Манычское сельское поселение","60650430","26816056","Северо-Кавказская дирекция по тепловодоснабжению структурное подразделение Центральной дирекции по тепловодоснабжению - филиала ОАО \"РЖД\"","7708503727","616745019","Сетевая компания","EE"]
[113,"Ростовская область","Сальский район","60650000","Новоегорлыкское сельское поселение","60650435","26816056","Северо-Кавказская дирекция по тепловодоснабжению структурное подразделение Центральной дирекции по тепловодоснабжению - филиала ОАО \"РЖД\"","7708503727","616745019","Сетевая компания","EE"]
[114,"Ростовская область","Сальский район","60650000","Рыбасовское сельское поселение","60650442","26816056","Северо-Кавказская дирекция по тепловодоснабжению структурное подразделение Центральной дирекции по тепловодоснабжению - филиала ОАО \"РЖД\"","7708503727","616745019","Сетевая компания","EE"]
[115,"Ростовская область","Сальский район","60650000","Сальское городское поселение","60650101","26816056","Северо-Кавказская дирекция по тепловодоснабжению структурное подразделение Центральной дирекции по тепловодоснабжению - филиала ОАО \"РЖД\"","7708503727","616745019","Сетевая компания","EE"]
[116,"Ростовская область","Сальский район","60650000","Сандатовское сельское поселение","60650445","26816056","Северо-Кавказская дирекция по тепловодоснабжению структурное подразделение Центральной дирекции по тепловодоснабжению - филиала ОАО \"РЖД\"","7708503727","616745019","Сетевая компания","EE"]
[117,"Ростовская область","Сальский район","60650000","Юловское сельское поселение","60650460","26816056","Северо-Кавказская дирекция по тепловодоснабжению структурное подразделение Центральной дирекции по тепловодоснабжению - филиала ОАО \"РЖД\"","7708503727","616745019","Сетевая компания","EE"]
[118,"Ростовская область","","","","","26516030","ЗАО \"Электросеть\"","7714734225","771401001","Сетевая компания","EE"]
[119,"Ростовская область","","","","","27051140","ОАО \"ОГК-2\"","2607018122","260701001","Станция - поставщик ЭЭ","EE"]
[120,"Ростовская область","","","","","26617350","ОАО \"Оборонэнергосбыт\"","7704731218","770401001","Сбытовая компания","EE"]
[121,"Ростовская область","","","","","26499763","ОАО \"Российские Железные Дороги\"","7708503727","616745011","Сетевая компания","EE"]
[122,"Ростовская область","","","","","27954259","ОАО \"ФСК ЕЭС\"","4716016979","997450001","Сетевая компания","EE"]
[123,"Ростовская область","","","","","26500047","ОАО \"Энергосбытовая компания \"Восток\"","7705424509","770101001","Сбытовая компания","EE"]
[124,"Ростовская область","","","","","26837653","ОАО ГК «ТНС энерго»","7705541227","770201001","Сбытовая компания","EE"]
[125,"Ростовская область","","","","","26613700","ООО \"Гарант Энерго\"","7709782777","770901001","Сбытовая компания","EE"]
[126,"Ростовская область","","","","","26427401","ООО \"Дизаж М\"","7728587330","772801001","Сбытовая компания","EE"]
[127,"Ростовская область","","","","","26801385","ООО \"Евразийская энергетическая компания\"","7717736855","771701001","Сбытовая компания","EE"]
[128,"Ростовская область","","","","","27855290","ООО \"Инженерные изыскания\"","1103029229","352801001","Сбытовая компания","EE"]
[129,"Ростовская область","","","","","26525135","ООО \"ЛУКОЙЛ-Ростовэнерго\"","6164288981","616301001","Региональная генерация","EE"]
[130,"Ростовская область","","","","","26525135","ООО \"ЛУКОЙЛ-Ростовэнерго\"","6164288981","616301001","Станция - поставщик ЭЭ","EE"]
[131,"Ростовская область","","","","","26515847","ООО \"МЕЧЕЛ-ЭНЕРГО\"","7722245108","771401001","Сбытовая компания","EE"]
[132,"Ростовская область","","","","","26502786","ООО \"РУСЭНЕРГОСБЫТ\"","7706284124","770601001","Сбытовая компания","EE"]
[133,"Ростовская область","","","","","26406211","ООО \"Русэнергоресурс\"","7706288496","770601001","Сбытовая компания","EE"]
[134,"Ростовская область","","","","","27805201","ООО \"Трансэнергопром\"","7731411714","770301001","Сбытовая компания","EE"]
[135,"Ростовская область","","","","","26801575","ООО \"ЭПМ-Энерго\"","7709756784","772001001","Сбытовая компания","EE"]
[136,"Ростовская область","","","","","26318816","ООО \"Энерголинк\"","7727223010","772801001","Сбытовая компания","EE"]
[137,"Ростовская область","","","","","27618219","ООО \"Энергосбытовая компания \"ИнтерЭрго\"","7710430628","770701001","Сбытовая компания","EE"]
[138,"Ростовская область","","","","","26809216","Общество с ограниченной ответственностью «Комплексэнергосервис»","7727688054","770401001","Сетевая компания","EE"]
[139,"Ростовская область","","","","","26324422","Открытое акционерное общество \"ГТ-ТЭЦ Энерго\"","7703311228","770301001","Станция - поставщик ЭЭ","EE"]
[140,"Ростовская область","","","","","26518665","Саратовский филиал ООО \"Газпром энерго\"","7736186950","645302001","Сетевая компания","EE"]
[141,"Ростовская область","","","","","26816056","Северо-Кавказская дирекция по тепловодоснабжению структурное подразделение Центральной дирекции по тепловодоснабжению - филиала ОАО \"РЖД\"","7708503727","616745019","Сетевая компания","EE"]
[142,"Ростовская область","","","","","26322297","Северо-Кавказский филиал ООО \"Газпром энерго\"","7736186950","263602001","Сетевая компания","EE"]

{"sheet":"REESTR_MO","index":16,"n_rows":476,"n_cols":5,"rows_kept":476,"cut":false,"hidden":true,"merged":[]}
["МР","МО","МО_ОКТМО","МР","ИМЯ ДИАПАЗОНА"]
["Азовский район","Азовский район","60601000","Азовский район","MO_LIST_2"]
["Азовский район","Александровское сельское поселение","60601405","Аксайский район","MO_LIST_3"]
["Азовский район","Елизаветинское сельское поселение","60601410","Багаевский район","MO_LIST_4"]
["Азовский район","Елизаветовское сельское поселение","60601420","Белокалитвинский район","MO_LIST_5"]
["Азовский район","Задонское сельское поселение","60601425","Боковский район","MO_LIST_6"]
["Азовский район","Кагальницкое сельское поселение","60601430","Верхнедонской район","MO_LIST_7"]
["Азовский район","Калиновское сельское поселение","60601435","Веселовский район","MO_LIST_8"]
["Азовский район","Красносадовское сельское поселение","60601438","Волгодонской район","MO_LIST_9"]
["Азовский район","Круглянское сельское поселение","60601440","Город Азов","MO_LIST_10"]
["Азовский район","Кугейское сельское поселение","60601444","Город Батайск","MO_LIST_11"]
["Азовский район","Кулешовское сельское поселение","60601448","Город Волгодонск","MO_LIST_12"]
["Азовский район","Маргаритовское сельское поселение","60601452","Город Гуково","MO_LIST_13"]
["Азовский район","Новоалександровское сельское поселение","60601455","Город Донецк","MO_LIST_14"]
["Азовский район","Обильненское сельское поселение","60601458","Город Зверево","MO_LIST_15"]
["Азовский район","Отрадовское сельское поселение","60601460","Город Каменск-Шахтинский","MO_LIST_16"]
["Азовский район","Пешковское сельское поселение","60601463","Город Новочеркасск","MO_LIST_17"]
["Азовский район","Рогожкинское сельское поселение","60601472","Город Новошахтинск","MO_LIST_18"]
["Азовский район","Самарское сельское поселение","60601476","Город Ростов-на-Дону","MO_LIST_19"]
["Азовский район","Семибалковское сельское поселение","60601480","Город Таганрог","MO_LIST_20"]
["Аксайский район","Аксайский район","60602000","Город Шахты","MO_LIST_21"]
["Аксайский район","Аксайское городское поселение","60602101","Дубовский район","MO_LIST_22"]
["Аксайский район","Большелогское сельское поселение","60602405","Егорлыкский район","MO_LIST_23"]
["Аксайский район","Верхнеподпольненское сельское поселение","60602410","Заветинский район","MO_LIST_24"]
["Аксайский район","Грушевское сельское поселение","60602415","Зерноградский район","MO_LIST_25"]
["Аксайский район","Истоминское сельское поселение","60602420","Зимовниковский район","MO_LIST_26"]
["Аксайский район","Ленинское сельское поселение","60602423","Кагальницкий район","MO_LIST_27"]
["Аксайский район","Мишкинское сельское поселение","60602425","Каменский район","MO_LIST_28"]
["Аксайский район","Ольгинское сельское поселение","60602447","Кашарский район","MO_LIST_29"]
["Аксайский район","Рассветовское сельское поселение","60602458","Константиновский район","MO_LIST_30"]
["Аксайский район","Старочеркасское сельское поселение","60602462","Красносулинский район","MO_LIST_31"]
["Аксайский район","Щепкинское сельское поселение","60602436","Куйбышевский район","MO_LIST_32"]
["Багаевский район","Ажиновское сельское поселение","60605402","Мартыновский район","MO_LIST_33"]
["Багаевский район","Багаевский район","60605000","Матвеево-Курганский район","MO_LIST_34"]
["Багаевский район","Багаевское сельское поселение","60605405","Миллеровский район","MO_LIST_35"]
["Багаевский район","Елкинское сельское поселение","60605415","Милютинский район","MO_LIST_36"]
["Багаевский район","Красненское сельское поселение","60605420","Морозовский район","MO_LIST_37"]
["Багаевский район","Манычское сельское поселение","60605440","Мясниковский район","MO_LIST_38"]
["Белокалитвинский район","Белокалитвинский район","60606000","Неклиновский район","MO_LIST_39"]
["Белокалитвинский район","Белокалитвинское городское поселение","60606101","Обливский район","MO_LIST_40"]
["Белокалитвинский район","Богураевское сельское поселение","60606410","Октябрьский район","MO_LIST_41"]
["Белокалитвинский район","Горняцкое сельское поселение","60606417","Орловский район","MO_LIST_42"]
["Белокалитвинский район","Грушево-Дубовское сельское поселение","60606420","Песчанокопский район","MO_LIST_43"]
["Белокалитвинский район","Ильинское сельское поселение","60606430","Пролетарский район","MO_LIST_44"]
["Белокалитвинский район","Коксовское сельское поселение","60606433","Ремонтненский район","MO_LIST_45"]
["Белокалитвинский район","Краснодонецкое сельское поселение","60606435","Родионово-Несветайский район","MO_LIST_46"]
["Белокалитвинский район","Литвиновское сельское поселение","60606445","Сальский район","MO_LIST_47"]
["Белокалитвинский район","Нижнепоповское сельское поселение","60606450","Семикаракорский район","MO_LIST_48"]
["Белокалитвинский район","Рудаковское сельское поселение","60606440","Советский район","MO_LIST_49"]
["Белокалитвинский район","Синегорское сельское поселение","60606459","Тарасовский район","MO_LIST_50"]
["Белокалитвинский район","Шолоховское городское поселение","60606102","Тацинский район","MO_LIST_51"]
["Боковский район","Боковский район","60607000","Усть-Донецкий район","MO_LIST_52"]
["Боковский район","Боковское сельское поселение","60607411","Целинский район","MO_LIST_53"]
["Боковский район","Верхнечирское сельское поселение","60607422","Цимлянский район","MO_LIST_54"]
["Боковский район","Грачевское сельское поселение","60607433","Чертковский район","MO_LIST_55"]
["Боковский район","Земцовское сельское поселение","60607455","Шолоховский район","MO_LIST_56"]
["Боковский район","Каргинское сельское поселение","60607444"]
["Боковский район","Краснозоринское сельское поселение","60607448"]
["Боковский район","Краснокутское сельское поселение","60607450"]
["Верхнедонской район","Верхнедонской район","60608000"]
["Верхнедонской район","Верхняковское сельское поселение","60608405"]
["Верхнедонской район","Казанское сельское поселение","60608412"]
["Верхнедонской район","Казансколопатинское сельское поселение","60608413"]
["Верхнедонской район","Мешковское сельское поселение","60608428"]
["Верхнедонской район","Мещеряковское сельское поселение","60608432"]
["Верхнедонской район","Мигулинское сельское поселение","60608436"]
["Верхнедонской район","Нижнебыковское сельское поселение","60608440"]
["Верхнедонской район","Солонцовское сельское поселение","60608446"]
["Верхнедонской район","Тубянское сельское поселение","60608448"]
["Верхнедонской район","Шумилинское сельское поселение","60608458"]
["Веселовский район","Верхнесоленовское сельское поселение","60609409"]
["Веселовский район","Веселовский район","60609000"]
["Веселовский район","Веселовское сельское поселение","60609411"]
["Веселовский район","Краснооктябрьское сельское поселение","60609432"]
["Веселовский район","Позднеевское сельское поселение","60609458"]
["Волгодонской район","Волгодонской район","60612000"]
["Волгодонской район","Добровольское сельское поселение","60612405"]
["Волгодонской район","Дубенцовское сельское поселение","60612408"]
["Волгодонской район","Победенское сельское поселение","60612425"]
["Волгодонской район","Потаповское сельское поселение","60612428"]
["Волгодонской район","Прогрессовское сельское поселение","60612430"]
["Волгодонской район","Романовское сельское поселение","60612432"]
["Волгодонской район","Рябичевское сельское поселение","60612435"]
["Город Азов","Азов","60704000"]
["Город Азов","Город Азов","60704000"]
["Город Батайск","Батайск","60707000"]
["Город Батайск","Город Батайск","60707000"]
["Город Волгодонск","Волгодонск","60712000"]
["Город Волгодонск","Город Волгодонск","60712000"]
["Город Гуково","Город Гуково","60715000"]
["Город Гуково","Гуково","60715000"]
["Город Донецк","Город Донецк","60717000"]
["Город Донецк","Донецк","60717000"]
["Город Зверево","Город Зверево","60718000"]
["Город Зверево","Зверево","60718000"]
["Город Каменск-Шахтинский","Город Каменск-Шахтинский","60719000"]
["Город Каменск-Шахтинский","Каменск-Шахтинский","60719000"]
["Город Новочеркасск","Город Новочеркасск","60727000"]
["Город Новочеркасск","Новочеркасск","60727000"]
["Город Новошахтинск","Город Новошахтинск","60730000"]
["Город Новошахтинск","Новошахтинск","60730000"]
["Город Ростов-на-Дону","Город Ростов-на-Дону","60701000"]
["Город Ростов-на-Дону","Ростов-на-Дону","60701000"]
["Город Таганрог","Город Таганрог","60737000"]
["Город Таганрог","Таганрог","60737000"]
["Город Шахты","Город Шахты","60740000"]
["Город Шахты","Шахты","60740000"]
["Дубовский район","Андреевское сельское поселение","60613405"]
["Дубовский район","Барабанщиковское сельское поселение","60613410"]
["Дубовский район","Вербовологовское сельское поселение","60613415"]
["Дубовский район","Веселовское сельское поселение","60613417"]
["Дубовский район","Гуреевское сельское поселение","60613420"]
["Дубовский район","Дубовский район","60613000"]
["Дубовский район","Дубовское сельское поселение","60613425"]
["Дубовский район","Жуковское сельское поселение","60613430"]
["Дубовский район","Комиссаровское сельское поселение","60613440"]
["Дубовский район","Малолученское сельское поселение","60613448"]
["Дубовский район","Мирненское сельское поселение","60613452"]
["Дубовский район","Присальское сельское поселение","60613460"]
["Дубовский район","Романовское сельское поселение","60613464"]
["Дубовский район","Семичанское сельское поселение","60613471"]
["Егорлыкский район","Балко-Грузское сельское поселение","60615410"]
["Егорлыкский район","Войновское сельское поселение","60615415"]
["Егорлыкский район","Егорлыкский район","60615000"]
["Егорлыкский район","Егорлыкское сельское поселение","60615417"]
["Егорлыкский район","Ильинское сельское поселение","60615425"]
["Егорлыкский район","Кавалерское сельское поселение","60615436"]
["Егорлыкский район","Новороговское сельское поселение","60615447"]
["Егорлыкский район","Объединенное сельское поселение","60615458"]
["Егорлыкский район","Роговское сельское поселение","60615462"]
["Егорлыкский район","Шаумяновское сельское поселение","60615480"]
["Заветинский район","Заветинский район","60617000"]
["Заветинский район","Заветинское сельское поселение","60617411"]
["Заветинский район","Киселевское сельское поселение","60617428"]
["Заветинский район","Кичкинское сельское поселение","60617430"]
["Заветинский район","Никольское сельское поселение","60617422"]
["Заветинский район","Савдянское сельское поселение","60617445"]
["Заветинский район","Тюльпановское сельское поселение","60617432"]
["Заветинский район","Федосеевское сельское поселение","60617466"]
["Заветинский район","Фоминское сельское поселение","60617434"]
["Заветинский район","Шебалинское сельское поселение","60617470"]
["Зерноградский район","Большеталовское сельское поселение","60618405"]
["Зерноградский район","Гуляй-Борисовское сельское поселение","60618410"]
["Зерноградский район","Донское сельское поселение","60618415"]
["Зерноградский район","Зерноградский район","60618000"]
["Зерноградский район","Зерноградское городское поселение","60618101"]
["Зерноградский район","Конзаводское сельское поселение","60618440"]
["Зерноградский район","Красноармейское сельское поселение","60618445"]
["Зерноградский район","Манычское сельское поселение","60618450"]
["Зерноградский район","Мечетинское сельское поселение","60618455"]
["Зерноградский район","Россошинское сельское поселение","60618460"]
["Зимовниковский район","Верхнесеребряковское сельское поселение","60619405"]
["Зимовниковский район","Гашунское сельское поселение","60619410"]
["Зимовниковский район","Глубочанское сельское поселение","60619415"]
["Зимовниковский район","Зимовниковский район","60619000"]
["Зимовниковский район","Зимовниковское сельское поселение","60619417"]
["Зимовниковский район","Камышевское сельское поселение","60619420"]
["Зимовниковский район","Кировское сельское поселение","60619425"]
["Зимовниковский район","Кутейниковское сельское поселение","60619430"]
["Зимовниковский район","Ленинское сельское поселение","60619432"]
["Зимовниковский район","Мокрогашунское сельское поселение","60619435"]
["Зимовниковский район","Савоськинское сельское поселение","60619445"]
["Зимовниковский район","Северное сельское поселение","60619450"]
["Кагальницкий район","Иваново-Шамшевское сельское поселение","60622412"]
["Кагальницкий район","Кагальницкий район","60622000"]
["Кагальницкий район","Кагальницкое сельское поселение","60622414"]
["Кагальницкий район","Калининское сельское поселение","60622417"]
["Кагальницкий район","Кировское сельское поселение","60622420"]
["Кагальницкий район","Мокробатайское сельское поселение","60622423"]
["Кагальницкий район","Новобатайское сельское поселение","60622425"]
["Кагальницкий район","Родниковское сельское поселение","60622430"]
["Кагальницкий район","Хомутовское сельское поселение","60622442"]
["Каменский район","Астаховское сельское поселение","60623405"]
["Каменский район","Богдановское сельское поселение","60623410"]
["Каменский район","Волченское сельское поселение","60623415"]
["Каменский район","Глубокинское городское поселение","60623151"]
["Каменский район","Груциновское сельское поселение","60623460"]
["Каменский район","Гусевское сельское поселение","60623420"]
["Каменский район","Калитвенское сельское поселение","60623425"]
["Каменский район","Каменский район","60623000"]
["Каменский район","Красновское сельское поселение","60623430"]
["Каменский район","Малокаменское сельское поселение","60623440"]
["Каменский район","Пиховкинское сельское поселение","60623455"]
["Каменский район","Старостаничное сельское поселение","60623465"]
["Каменский район","Уляшкинское сельское поселение","60623470"]
["Кашарский район","Верхнемакеевское сельское поселение","60624410"]
["Кашарский район","Верхнесвечниковское сельское поселение","60624415"]
["Кашарский район","Вяжинское сельское поселение","60624420"]
["Кашарский район","Индустриальное сельское поселение","60624425"]
["Кашарский район","Кашарский район","60624000"]
["Кашарский район","Кашарское сельское поселение","60624430"]
["Кашарский район","Киевское сельское поселение","60624435"]
["Кашарский район","Первомайское сельское поселение","60624450"]
["Кашарский район","Поповское сельское поселение","60624455"]
["Кашарский район","Талловеровское сельское поселение","60624470"]
["Кашарский район","Фомино-Свечниковское сельское поселение","60624475"]
["Константиновский район","Авиловское сельское поселение","60625405"]
["Константиновский район","Богоявленское сельское поселение","60625410"]
["Константиновский район","Гапкинское сельское поселение","60625415"]
["Константиновский район","Константиновский район","60625000"]
["Константиновский район","Константиновское городское поселение","60625101"]
["Константиновский район","Николаевское сельское поселение","60625420"]
["Константиновский район","Почтовское сельское поселение","60625425"]
["Константиновский район","Стычновское сельское поселение","60625436"]
["Красносулинский район","Божковское сельское поселение","60626405"]
["Красносулинский район","Владимировское сельское поселение","60626410"]
["Красносулинский район","Горненское городское поселение","60626102"]
["Красносулинский район","Гуково-Гнилушевское сельское поселение","60626415"]
["Красносулинский район","Долотинское сельское поселение","60626420"]
["Красносулинский район","Киселевское сельское поселение","60626425"]
["Красносулинский район","Ковалевское сельское поселение","60626430"]
["Красносулинский район","Комиссаровское сельское поселение","60626435"]
["Красносулинский район","Красносулинский район","60626000"]
["Красносулинский район","Красносулинское городское поселение","60626101"]
["Красносулинский район","Михайловское сельское поселение","60626440"]
["Красносулинский район","Пролетарское сельское поселение","60626445"]
["Красносулинский район","Садковское сельское поселение","60626450"]
["Красносулинский район","Табунщиковское сельское поселение","60626455"]
["Красносулинский район","Углеродовское городское поселение","60626165"]
["Красносулинский район","Ударниковское сельское поселение","60626460"]
["Куйбышевский район","Кринично-Лугское сельское поселение","60627404"]
["Куйбышевский район","Куйбышевский район","60627000"]
["Куйбышевский район","Куйбышевское сельское поселение","60627405"]
["Куйбышевский район","Лысогорское сельское поселение","60627410"]
["Мартыновский район","Большеорловское сельское поселение","60630405"]
["Мартыновский район","Зеленолугское сельское поселение","60630407"]
["Мартыновский район","Ильиновское сельское поселение","60630412"]
["Мартыновский район","Комаровское сельское поселение","60630423"]
["Мартыновский район","Малоорловское сельское поселение","60630434"]
["Мартыновский район","Мартыновский район","60630000"]
["Мартыновский район","Мартыновское сельское поселение","60630439"]
["Мартыновский район","Новоселовское сельское поселение","60630456"]
["Мартыновский район","Рубашкинское сельское поселение","60630467"]
["Мартыновский район","Южненское сельское поселение","60630489"]
["Матвеево-Курганский район","Алексеевское сельское поселение","60631405"]
["Матвеево-Курганский район","Анастасиевское сельское поселение","60631410"]
["Матвеево-Курганский район","Большекирсановское сельское поселение","60631415"]
["Матвеево-Курганский район","Екатериновское сельское поселение","60631420"]
["Матвеево-Курганский район","Малокирсановское сельское поселение","60631440"]
["Матвеево-Курганский район","Матвеево-Курганский район","60631000"]
["Матвеево-Курганский район","Матвеево-Курганское сельское поселение","60631445"]
["Матвеево-Курганский район","Новониколаевское сельское поселение","60631450"]
["Матвеево-Курганский район","Ряженское сельское поселение","60631465"]
["Миллеровский район","Верхнеталовское сельское поселение","60632402"]
["Миллеровский район","Волошинское сельское поселение","60632405"]
["Миллеровский район","Дегтевское сельское поселение","60632415"]
["Миллеровский район","Колодезянское сельское поселение","60632420"]
["Миллеровский район","Криворожское сельское поселение","60632425"]
["Миллеровский район","Мальчевское сельское поселение","60632435"]
["Миллеровский район","Миллеровский район","60632000"]
["Миллеровский район","Миллеровское городское поселение","60632101"]
["Миллеровский район","Ольхово-Рогское сельское поселение","60632455"]
["Миллеровский район","Первомайское сельское поселение","60632460"]
["Миллеровский район","Сулинское сельское поселение","60632467"]
["Миллеровский район","Титовское сельское поселение","60632470"]
["Миллеровский район","Треневское сельское поселение","60632430"]
["Миллеровский район","Туриловское сельское поселение","60632475"]
["Милютинский район","Лукичевское сельское поселение","60633420"]
["Милютинский район","Маньково-Березовское сельское поселение","60633428"]
["Милютинский район","Милютинский район","60633000"]
["Милютинский район","Милютинское сельское поселение","60633433"]
["Милютинский район","Николо-Березовское сельское поселение","60633444"]
["Милютинский район","Орловское сельское поселение","60633466"]
["Милютинский район","Светочниковское сельское поселение","60633477"]
["Милютинский район","Селивановское сельское поселение","60633480"]
["Морозовский район","Вознесенское сельское поселение","60634415"]
["Морозовский район","Вольно-Донское сельское поселение","60634420"]
["Морозовский район","Гагаринское сельское поселение","60634423"]
["Морозовский район","Грузиновское сельское поселение","60634425"]
["Морозовский район","Знаменское сельское поселение","60634430"]
["Морозовский район","Костино-Быстрянское сельское поселение","60634440"]
["Морозовский район","Морозовский район","60634000"]
["Морозовский район","Морозовское городское поселение","60634101"]
["Морозовский район","Парамоновское сельское поселение","60634460"]
["Морозовский район","Широко-Атамановское сельское поселение","60634459"]
["Мясниковский район","Большесальское сельское поселение","60635405"]
["Мясниковский район","Калининское сельское поселение","60635420"]
["Мясниковский район","Краснокрымское сельское поселение","60635424"]
["Мясниковский район","Крымское сельское поселение","60635428"]
["Мясниковский район","Мясниковский район","60635000"]
["Мясниковский район","Недвиговское сельское поселение","60635447"]
["Мясниковский район","Петровское сельское поселение","60635436"]
["Мясниковский район","Чалтырское сельское поселение","60635452"]
["Неклиновский район","Андреево-Мелентьевское сельское поселение","60636428"]
["Неклиновский район","Большенеклиновское сельское поселение","60636404"]
["Неклиновский район","Вареновское сельское поселение","60636407"]
["Неклиновский район","Васильево-Ханжоновское сельское поселение","60636408"]
["Неклиновский район","Лакедемоновское сельское поселение","60636424"]
["Неклиновский район","Натальевское сельское поселение","60636432"]
["Неклиновский район","Неклиновский район","60636000"]
["Неклиновский район","Николаевское сельское поселение","60636434"]
["Неклиновский район","Новобессергеневское сельское поселение","60636436"]
["Неклиновский район","Носовское сельское поселение","60636440"]
["Неклиновский район","Платовское сельское поселение","60636412"]
["Неклиновский район","Покровское сельское поселение","60636448"]
["Неклиновский район","Поляковское сельское поселение","60636420"]
["Неклиновский район","Приморское сельское поселение","60636452"]
["Неклиновский район","Самбекское сельское поселение","60636456"]
["Неклиновский район","Синявское сельское поселение","60636460"]
["Неклиновский район","Советинское сельское поселение","60636464"]
["Неклиновский район","Троицкое сельское поселение","60636468"]
["Неклиновский район","Федоровское сельское поселение","60636472"]
["Обливский район","Александровское сельское поселение","60640403"]
["Обливский район","Алексеевское сельское поселение","60640405"]
["Обливский район","Караичевское сельское поселение","60640425"]
["Обливский район","Каштановское сельское поселение","60640410"]
["Обливский район","Нестеркинское сельское поселение","60640440"]
["Обливский район","Обливский район","60640000"]
["Обливский район","Обливское сельское поселение","60640420"]
["Обливский район","Солонецкое сельское поселение","60640430"]
["Октябрьский район","Алексеевское сельское поселение","60641404"]
["Октябрьский район","Артемовское сельское поселение","60641405"]
["Октябрьский район","Бессергеневское сельское поселение","60641408"]
["Октябрьский район","Каменоломненское городское поселение","60641151"]
["Октябрьский район","Керчикское сельское поселение","60641415"]
["Октябрьский район","Коммунарское сельское поселение","60641425"]
["Октябрьский район","Краснокутское сельское поселение","60641430"]
["Октябрьский район","Краснолучское сельское поселение","60641427"]
["Октябрьский район","Красюковское сельское поселение","60641435"]
["Октябрьский район","Кривянское сельское поселение","60641440"]
["Октябрьский район","Мокрологское сельское поселение","60641445"]
["Октябрьский район","Октябрьский район","60641000"]
["Октябрьский район","Персиановское сельское поселение","60641450"]
["Орловский район","Волочаевское сельское поселение","60642411"]
["Орловский район","Донское сельское поселение","60642422"]
["Орловский район","Каменно-Балковское сельское поселение","60642433"]
["Орловский район","Камышевское сельское поселение","60642438"]
["Орловский район","Красноармейское сельское поселение","60642443"]
["Орловский район","Курганенское сельское поселение","60642444"]
["Орловский район","Луганское сельское поселение","60642460"]
["Орловский район","Майорское сельское поселение","60642445"]
["Орловский район","Орловский район","60642000"]
["Орловский район","Орловское сельское поселение","60642446"]
["Орловский район","Островянское сельское поселение","60642448"]
["Орловский район","Пролетарское сельское поселение","60642452"]
["Песчанокопский район","Богородицкое сельское поселение","60644411"]
["Песчанокопский район","Жуковское сельское поселение","60644422"]
["Песчанокопский район","Зареченское сельское поселение","60644426"]
["Песчанокопский район","Краснополянское сельское поселение","60644433"]
["Песчанокопский район","Летницкое сельское поселение","60644444"]
["Песчанокопский район","Песчанокопский район","60644000"]
["Песчанокопский район","Песчанокопское сельское поселение","60644455"]
["Песчанокопский район","Поливянское сельское поселение","60644466"]
["Песчанокопский район","Развильненское сельское поселение","60644477"]
["Песчанокопский район","Рассыпненское сельское поселение","60644488"]
["Пролетарский район","Буденновское сельское поселение","60645405"]
["Пролетарский район","Дальненское сельское поселение","60645410"]
["Пролетарский район","Ковринское сельское поселение","60645415"]
["Пролетарский район","Мокроельмутянское сельское поселение","60645420"]
["Пролетарский район","Николаевское сельское поселение","60645425"]
["Пролетарский район","Огневское сельское поселение","60645427"]
["Пролетарский район","Опенкинское сельское поселение","60645430"]
["Пролетарский район","Пролетарский район","60645000"]
["Пролетарский район","Пролетарское городское поселение","60645101"]
["Пролетарский район","Суховское сельское поселение","60645435"]
["Пролетарский район","Уютненское сельское поселение","60645448"]
["Ремонтненский район","Валуевское сельское поселение","60647411"]
["Ремонтненский район","Денисовское сельское поселение","60647422"]
["Ремонтненский район","Калининское сельское поселение","60647433"]
["Ремонтненский район","Киевское сельское поселение","60647435"]
["Ремонтненский район","Кормовское сельское поселение","60647437"]
["Ремонтненский район","Краснопартизанское сельское поселение","60647444"]
["Ремонтненский район","Первомайское сельское поселение","60647455"]
["Ремонтненский район","Подгорненское сельское поселение","60647466"]
["Ремонтненский район","Привольненское сельское поселение","60647469"]
["Ремонтненский район","Ремонтненский район","60647000"]
["Ремонтненский район","Ремонтненское сельское поселение","60647472"]
["Родионово-Несветайский район","Барило-Крепинское сельское поселение","60648410"]
["Родионово-Несветайский район","Болдыревское сельское поселение","60648415"]
["Родионово-Несветайский район","Большекрепинское сельское поселение","60648420"]
["Родионово-Несветайский район","Волошинское сельское поселение","60648425"]
["Родионово-Несветайский район","Кутейниковское сельское поселение","60648436"]
["Родионово-Несветайский район","Родионово-Несветайский район","60648000"]
["Родионово-Несветайский район","Родионово-Несветайское сельское поселение","60648447"]
["Сальский район","Буденновское сельское поселение","60650410"]
["Сальский район","Гигантовское сельское поселение","60650412"]
["Сальский район","Екатериновское сельское поселение","60650415"]
["Сальский район","Ивановское сельское поселение","60650420"]
["Сальский район","Кручено-Балковское сельское поселение","60650425"]
["Сальский район","Манычское сельское поселение","60650430"]
["Сальский район","Новоегорлыкское сельское поселение","60650435"]
["Сальский район","Рыбасовское сельское поселение","60650442"]
["Сальский район","Сальский район","60650000"]
["Сальский район","Сальское городское поселение","60650101"]
["Сальский район","Сандатовское сельское поселение","60650445"]
["Сальский район","Юловское сельское поселение","60650460"]
["Семикаракорский район","Бакланниковское сельское поселение","60651404"]
["Семикаракорский район","Большемечетновское сельское поселение","60651405"]
["Семикаракорский район","Задоно-Кагальницкое сельское поселение","60651410"]
["Семикаракорский район","Золоторевское сельское поселение","60651415"]
["Семикаракорский район","Кочетовское сельское поселение","60651420"]
["Семикаракорский район","Кузнецовское сельское поселение","60651425"]
["Семикаракорский район","Новозолотовское сельское поселение","60651430"]
["Семикаракорский район","Семикаракорский район","60651000"]
["Семикаракорский район","Семикаракорское городское поселение","60651101"]
["Семикаракорский район","Сусатское сельское поселение","60651440"]
["Семикаракорский район","Топилинское сельское поселение","60651450"]
["Советский район","Калач-Куртлакское сельское поселение","60652414"]
["Советский район","Советский район","60652000"]
["Советский район","Советское сельское поселение","60652426"]
["Советский район","Чирское сельское поселение","60652437"]
["Тарасовский район","Большинское сельское поселение","60653405"]
["Тарасовский район","Войковское сельское поселение","60653410"]
["Тарасовский район","Дячкинское сельское поселение","60653415"]
["Тарасовский район","Ефремово-Степановское сельское поселение","60653420"]
["Тарасовский район","Зеленовское сельское поселение","60653425"]
["Тарасовский район","Колушкинское сельское поселение","60653430"]
["Тарасовский район","Красновское сельское поселение","60653435"]
["Тарасовский район","Курно-Липовское сельское поселение","60653440"]
["Тарасовский район","Митякинское сельское поселение","60653445"]
["Тарасовский район","Тарасовский район","60653000"]
["Тарасовский район","Тарасовское сельское поселение","60653453"]
["Тацинский район","Быстрогорское сельское поселение","60654407"]
["Тацинский район","Верхнеобливское сельское поселение","60654411"]
["Тацинский район","Ермаковское сельское поселение","60654422"]
["Тацинский район","Жирновское городское поселение","60654155"]
["Тацинский район","Зазерское сельское поселение","60654433"]
["Тацинский район","Ковылкинское сельское поселение","60654445"]
["Тацинский район","Михайловское сельское поселение","60654448"]
["Тацинский район","Скосырское сельское поселение","60654456"]
["Тацинский район","Суховское сельское поселение","60654460"]
["Тацинский район","Тацинский район","60654000"]
["Тацинский район","Тацинское сельское поселение","60654465"]
["Тацинский район","Углегорское сельское поселение","60654467"]
["Усть-Донецкий район","Апаринское сельское поселение","60655405"]
["Усть-Донецкий район","Верхнекудрюченское сельское поселение","60655410"]
["Усть-Донецкий район","Крымское сельское поселение","60655423"]
["Усть-Донецкий район","Мелиховское сельское поселение","60655428"]
["Усть-Донецкий район","Нижнекундрюченское сельское поселение","60655432"]
["Усть-Донецкий район","Пухляковское сельское поселение","60655440"]
["Усть-Донецкий район","Раздорское сельское поселение","60655450"]
["Усть-Донецкий район","Усть-Донецкий район","60655000"]
["Усть-Донецкий район","Усть-Донецкое городское поселение","60655151"]
["Целинский район","Кировское сельское поселение","60656420"]
["Целинский район","Лопанское сельское поселение","60656425"]
["Целинский район","Михайловское сельское поселение","60656430"]
["Целинский район","Новоцелинское сельское поселение","60656432"]
["Целинский район","Ольшанское сельское поселение","60656435"]
["Целинский район","Среднеегорлыкское сельское поселение","60656440"]
["Целинский район","Хлеборобное сельское поселение","60656450"]
["Целинский район","Целинский район","60656000"]
["Целинский район","Целинское сельское поселение","60656455"]
["Целинский район","Юловское сельское поселение","60656460"]
["Цимлянский район","Калининское сельское поселение","60657420"]
["Цимлянский район","Красноярское сельское поселение","60657430"]
["Цимлянский район","Лозновское сельское поселение","60657433"]
["Цимлянский район","Маркинское сельское поселение","60657435"]
["Цимлянский район","Новоцимлянское сельское поселение","60657440"]
["Цимлянский район","Саркеловское сельское поселение","60657444"]
["Цимлянский район","Цимлянский район","60657000"]
["Цимлянский район","Цимлянское городское поселение","60657101"]
["Чертковский район","Алексеево-Лозовское сельское поселение","60658404"]
["Чертковский район","Донское сельское поселение","60658416"]
["Чертковский район","Зубрилинское сельское поселение","60658420"]
["Чертковский район","Кутейниковское сельское поселение","60658424"]
["Чертковский район","Маньковское сельское поселение","60658428"]
["Чертковский район","Михайлово-Александровское сельское поселение","60658432"]
["Чертковский район","Нагибинское сельское поселение","60658434"]
["Чертковский район","Ольховчанское сельское поселение","60658436"]
["Чертковский район","Осиковское сельское поселение","60658438"]
["Чертковский район","Сетрковское сельское поселение","60658444"]
["Чертковский район","Сохрановское сельское поселение","60658448"]
["Чертковский район","Чертковский район","60658000"]
["Чертковский район","Чертковское сельское поселение","60658454"]
["Чертковский район","Шептуховское сельское поселение","60658456"]
["Чертковский район","Щедровское сельское поселение","60658460"]
["Шолоховский район","Базковское сельское поселение","60659405"]
["Шолоховский район","Вешенское сельское поселение","60659410"]
["Шолоховский район","Дубровское сельское поселение","60659415"]
["Шолоховский район","Дударевское сельское поселение","60659420"]
["Шолоховский район","Калининское сельское поселение","60659425"]
["Шолоховский район","Колундаевское сельское поселение","60659430"]
["Шолоховский район","Кружилинское сельское поселение","60659435"]
["Шолоховский район","Меркуловское сельское поселение","60659440"]
["Шолоховский район","Терновское сельское поселение","60659460"]
["Шолоховский район","Шолоховский район","60659000"]

{"sheet":"modfrmReestr","index":17,"n_rows":0,"n_cols":0,"rows_kept":0,"cut":false,"hidden":true,"merged":[]}

{"sheet":"modfrmCheckUpdates","index":18,"n_rows":0,"n_cols":0,"rows_kept":0,"cut":false,"hidden":true,"merged":[]}

{"sheet":"modReestr","index":19,"n_rows":0,"n_cols":0,"rows_kept":0,"cut":false,"hidden":true,"merged":[]}

{"sheet":"modListProv","index":20,"n_rows":0,"n_cols":0,"rows_kept":0,"cut":false,"hidden":true,"merged":[]}

{"sheet":"modUpdTemplMain","index":21,"n_rows":0,"n_cols":0,"rows_kept":0,"cut":false,"hidden":true,"merged":[]}

{"sheet":"modDoubleClick","index":22,"n_rows":0,"n_cols":0,"rows_kept":0,"cut":false,"hidden":true,"merged":[]}

{"sheet":"modHyperlink","index":23,"n_rows":0,"n_cols":0,"rows_kept":0,"cut":false,"hidden":true,"merged":[]}

{"sheet":"modfrmDateChoose","index":24,"n_rows":0,"n_cols":0,"rows_kept":0,"cut":false,"hidden":true,"merged":[]}